{"text_format":"1","workbook":"xlsx","n_sheets":22,"sheets":["Disclaimer","Introduction","Index","0. Summary of KPIs","1. Cov Ass (GAR,off-b Turnover)","1. Cov Ass (GAR,off-b CAPEX)","2. GAR - Sector inform Turnover","2. GAR - Sector inform CAPEX","3. GAR KPIs Stock Turnover","3. GAR KPIs Stock CAPEX","4. GAR KPI flow - Turnover","4. GAR KPI flow - CAPEX","5. FinGar AuM KPI - Turnover","5. FinGar AuM KPI - Turn Flow","5. FinGar AuM KPI - CAPEX","5. FinGar AuM KPI - CAPEX Flow","Eligible non-eligible","Template 1 Nuclear and gas","Template 2 Aligned denominator","Template 3 Aligned numerator","Template 4 Eligible not aligned","Template 5 non-elible"],"not_rendered":{"charts":0,"images":1,"macros":1,"external_links":3,"defined_names":436,"comments":0,"pivot_tables":0},"unopened":[],"bounds":{"document_bytes":16777216,"sheet_cells":100000,"rows_first":2000,"rows_last":500,"rows_between":2000,"halvings":0,"cell_chars":16384,"cell_head_chars":4096},"cells_cut":0,"cells_raw":0,"read":"whole","date_system":"1900"}

{"sheet":"Disclaimer","index":0,"n_rows":3,"n_cols":2,"rows_kept":3,"cut":false,"hidden":false,"merged":[[2,1,9,7]]}
[]
[null,"Disclaimer"]
[null,"This publication has been prepared by Spar Nord for information purposes only, and no liability is accepted for any loss arising from reliance on it. Figures in the publication are presented in million of Danish kroner, unless otherwise stated. Consequently, rounding differences may occur because grand totals are rounded and the underlying decimal places are not shown. "]

{"sheet":"Introduction","index":1,"n_rows":3,"n_cols":2,"rows_kept":3,"cut":false,"hidden":false,"merged":[[2,1,9,7]]}
[]
[null,"Spar Nord EU Taxonomy report 2024"]
[null,"Spar Nord’s EU taxonomy reporting has been carried out under the EU Taxonomy Regulation (EU 2020/852) as well as the delegated acts of Article 8 (EU 2021/2139, EU 2021/2178, EU 2023/2486 and EU 2022/1214). The reporting of assets covered by the Taxonomy, cf. EU 2023/2486, can be found in the template “Eligible non-eligible”."]

{"sheet":"Index","index":2,"n_rows":10,"n_cols":3,"rows_kept":10,"cut":false,"hidden":false,"merged":[[1,1,1,2]]}
[]
[null,"‘Annex VI - Template for the KPIs of credit institutions"]
[]
[null,"Template number","Name "]
[null,0,"Summary of KPIs"]
[null,1,"Assets for the calculation of GAR"]
[null,2,"GAR sector information"]
[null,3,"GAR KPI stock"]
[null,4,"GAR KPI flow"]
[null,5,"KPI off-balance sheet exposures"]

{"sheet":"0. Summary of KPIs","index":3,"n_rows":37,"n_cols":9,"rows_kept":37,"cut":false,"hidden":false,"merged":[]}
[]
[]
[null,2024,null,"Total environmentally \nsustainable assets\nDKK millions","KPI (****)","KPI (*****)","% coverage (over total assets) (***)","% of assets excluded from the numerator of the GAR (Article 7(2) and (3) and Section 1.1.2. of Annex V)","% of assets excluded from the denominator of the GAR (Article 7(1) and Section 1.2.4 of Annex V)"]
[null,"Main KPI","Green asset ratio (GAR) stock",1664.1435617641,1.321778237625058E-2,1.1268405554536228E-2,0.84994622118517693,0.18700673436685383,6.4541062261051973E-3]
[]
[null,null,null,"Total environmentally\n sustainable activities","KPI","KPI","% coverage (over total assets)","% of assets excluded from the numerator of the GAR (Article 7(2) and (3) and Section 1.1.2. of Annex V)","% of assets excluded from the denominator of the GAR (Article 7(1) and Section 1.2.4 of Annex V)"]
[null,"Additional KPIs","GAR (flow)",323.62182899999999,2.5704290219959658E-3,2.5704290219959658E-3,"-","-","-"]
[null,null,"Trading book",0,0,0]
[null,null,"Financial guarantees",162.75121368000001,1.4723313462328037E-2,1.4466884119570504E-2]
[null,null,"Assets under management",793.07810591827035,8.1320012472895664E-2,8.9008476150714361E-2]
[null,null,"Fees and commissions income",0,0,0]
[]
[]
[]
[null,2023,null,"Total environmentally\n sustainable assets\nDKK millions","KPI (****)","KPI (*****)","% coverage (over total assets) (***)","% of assets excluded from the numerator of the GAR (Article 7(2) and (3) and Section 1.1.2. of Annex V)","% of assets excluded from the denominator of the GAR (Article 7(1) and Section 1.2.4 of Annex V)"]
[null,"Main KPI","Green asset ratio (GAR) stock",385.491399,3.3936621467774881E-3,3.3936621467774881E-3,0.82684159964548709,0.18266809549672078,7.2794544364315188E-3]
[]
[null,null,null,"Total environmentally\n sustainable activities\nDKK millions","KPI","KPI","% coverage (over total assets)","% of assets excluded from the numerator of the GAR (Article 7(2) and (3) and Section 1.1.2. of Annex V)","% of assets excluded from the denominator of the GAR (Article 7(1) and Section 1.2.4 of Annex V)"]
[null,"Additional KPIs","GAR (flow)",139.30192400000001,1.2263403740742722E-3,1.2263403740742722E-3,"-","-","-"]
[null,null,"Trading book",0,0,0]
[null,null,"Financial guarantees",0,0,0]
[null,null,"Assets under management",585.98403623726369,7.0915299194557135E-2,5.1726333450082151E-2]
[null,null,"Fees and commissions income",0,0,0]
[]
[null,"(****) based on the Turnover KPI of the counterparty \n(*****) based on the CapEX KPI of the counterparty, except for lending activities where for general lending Turnover KPI is used"]
[]
[]
[]
[]
[]
[]
[null,"Efter kopiering til Word:"]
[]
[null,"Skrifttype:  7"]
[null,"Kolonne A: Foretrukken bredde: 10"]
[null,"Kolonne B: Foretrukken bredde: 4"]
[null,"Kolonne C: Foretrukken bredde: 3"]

{"sheet":"1. Cov Ass (GAR,off-b Turnover)","index":4,"n_rows":153,"n_cols":34,"rows_kept":153,"cut":false,"hidden":false,"merged":[[5,25,5,28],[6,25,6,28],[7,26,7,28],[7,5,7,8],[7,18,7,20],[5,21,5,24],[6,21,6,24],[7,22,7,24],[5,29,5,33],[6,29,6,33],[7,30,7,33],[4,1,8,2],[4,3,4,33],[7,10,7,12],[6,9,6,12],[5,9,5,12],[5,13,5,16],[6,13,6,16],[7,14,7,16],[5,17,5,20],[6,17,6,20],[5,3,8,3],[5,4,5,8],[6,4,6,8],[77,29,77,33],[78,4,78,8],[78,9,78,12],[78,13,78,16],[78,17,78,20],[78,21,78,24],[77,9,77,12],[77,13,77,16],[77,17,77,20],[77,21,77,24],[77,25,77,28],[135,1,135,33],[1,1,1,4],[78,25,78,28],[78,29,78,33],[79,5,79,8],[79,10,79,12],[79,14,79,16],[79,18,79,20],[79,22,79,24],[79,26,79,28],[79,30,79,33],[63,1,63,33],[76,1,80,2],[76,3,76,33],[77,3,80,3],[77,4,77,8]]}
[]
[null,"1. Assets for the calculation of GAR - Turnover"]
[]
[]
[null,"Million DKK",null,"31.12.2024"]
[null,null,null,"Total [gross] carrying amount ","Climate Change Mitigation (CCM)",null,null,null,null,"Climate Change Adaptation (CCA)",null,null,null,"Water and marine resources (WTR)",null,null,null,"Circular economy (CE)",null,null,null,"Pollution (PPC)",null,null,null,"Biodiversity and Ecosystems (BIO)",null,null,null,"TOTAL (CCM + CCA + WTR + CE + PPC + BIO)"]
[null,null,null,null,"Of which towards taxonomy relevant sectors (Taxonomy-eligible)",null,null,null,null,"Of which towards taxonomy relevant sectors (Taxonomy-eligible)",null,null,null,"Of which towards taxonomy relevant sectors (Taxonomy-eligible)",null,null,null,"Of which towards taxonomy relevant sectors (Taxonomy-eligible)",null,null,null,"Of which towards taxonomy relevant sectors (Taxonomy-eligible)",null,null,null,"Of which towards taxonomy relevant sectors (Taxonomy-eligible)"]
[null,null,null,null,null,"Of which environmentally sustainable (Taxonomy-aligned)",null,null,null,null,"Of which environmentally sustainable (Taxonomy-aligned)",null,null,null,"Of which environmentally sustainable (Taxonomy-aligned)",null,null,null,"Of which environmentally sustainable (Taxonomy-aligned)",null,null,null,"Of which environmentally sustainable (Taxonomy-aligned)",null,null,null,"Of which environmentally sustainable (Taxonomy-aligned)",null,null,null,"Of which environmentally sustainable (Taxonomy-aligned)"]
[null,null,null,null,null,null,"Of which Use of Proceeds","Of which transitional","Of which enabling",null,null,"Of which Use of Proceeds","Of which enabling",null,null,"Of which Use of Proceeds","Of which enabling",null,null,"Of which Use of Proceeds","Of which enabling",null,null,"Of which Use of Proceeds","Of which enabling",null,null,"Of which Use of Proceeds","Of which enabling",null,null,"Of which Use of Proceeds","Of which transitional","Of which enabling"]
[null,null,"GAR - Covered assets in both numerator and denominator"]
[null,1,"Loans and advances, debt securities and equity instruments not HfT eligible for GAR calculation",66538.633942,22605.022162107201,1664.1435617641,0,2.5185027300000003E-2,0.55407060060000002,0,0,0,0,0,0,0,0,0,0,0,0,0,0,0,0,0,0,0,0,22605.022162107201,1664.1435617641,0,2.5185027300000003E-2,0.55407060060000002]
[null,2,"Financial undertakings",33527.510626999996,3050.0511071072006,275.8756917641,0,2.5185027300000003E-2,0.55407060060000002,0,0,0,0,0,0,0,0,0,0,0,0,0,0,0,0,0,0,0,0,3050.0511071072006,275.8756917641,0,2.5185027300000003E-2,0.55407060060000002]
[null,3,"Credit institutions",15369.374702000001,3050.0511071072006,275.8756917641,0,2.5185027300000003E-2,0.55407060060000002,0,0,0,0,0,0,0,0,0,0,0,0,0,0,0,0,0,0,0,0,3050.0511071072006,275.8756917641,0,2.5185027300000003E-2,0.55407060060000002]
[null,4,"Loans and advances",1343.3518590000001,369.41684374039994,29.3850123044,0,0,0,0,0,0,0,0,0,0,0,0,0,0,0,0,0,0,0,0,0,0,0,369.41684374039994,29.3850123044,0,0,0]
[null,5,"Debt securities, including UoP",13200.467113000001,2680.6342633668005,246.4906794597,0,2.5185027300000003E-2,0.55407060060000002,0,0,0,0,0,0,0,0,0,0,0,0,0,0,0,0,0,0,0,0,2680.6342633668005,246.4906794597,0,2.5185027300000003E-2,0.55407060060000002]
[null,6,"Equity instruments",825.55573000000004,0,0,null,0,0,0,0,null,0,0,0,null,0,0,0,null,0,0,0,null,0,0,0,null,0,0,0,null,0,0]
[null,7,"Other financial corporations",18158.135924999999,0,0,0,0,0,0,0,0,0,0,0,0,0,0,0,0,0,0,0,0,0,0,0,0,0,0,0,0,0,0]
[null,8,"of which investment firms",0,0,0,0,0,0,0,0,0,0,0,0,0,0,0,0,0,0,0,0,0,0,0,0,0,0,0,0,0,0,0]
[null,9,"Loans and advances",17346.771384,0,0,0,0,0,0,0,0,0,0,0,0,0,0,0,0,0,0,0,0,0,0,0,0,0,0,0,0,0,0]
[null,10,"Debt securities, including UoP",0,0,0,0,0,0,0,0,0,0,0,0,0,0,0,0,0,0,0,0,0,0,0,0,0,0,0,0,0,0,0]
[null,11,"Equity instruments",811.36454100000003,0,0,null,0,0,0,0,null,0,0,0,null,0,0,0,null,0,0,0,null,0,0,0,null,0,0,0,null,0,0]
[null,12,"of which  management companies",0,0,0,0,0,0,0,0,0,0,0,0,0,0,0,0,0,0,0,0,0,0,0,0,0,0,0,0,0,0,0]
[null,13,"Loans and advances",0,0,0,0,0,0,0,0,0,0,0,0,0,0,0,0,0,0,0,0,0,0,0,0,0,0,0,0,0,0,0]
[null,14,"Debt securities, including UoP",0,0,0,0,0,0,0,0,0,0,0,0,0,0,0,0,0,0,0,0,0,0,0,0,0,0,0,0,0,0,0]
[null,15,"Equity instruments",0,0,0,0,0,0,0,0,0,0,0,0,0,0,0,0,0,0,0,0,0,0,0,0,0,0,0,0,0,0,0]
[null,16,"of which insurance undertakings",0,0,0,0,0,0,0,0,0,0,0,0,0,0,0,0,0,0,0,0,0,0,0,0,0,0,0,0,0,0,0]
[null,17,"Loans and advances",0,0,0,0,0,0,0,0,0,0,0,0,0,0,0,0,0,0,0,0,0,0,0,0,0,0,0,0,0,0,0]
[null,18,"Debt securities, including UoP",0,0,0,0,0,0,0,0,0,0,0,0,0,0,0,0,0,0,0,0,0,0,0,0,0,0,0,0,0,0,0]
[null,19,"Equity instruments",0,0,0,null,0,0,0,0,null,0,0,0,null,0,0,0,null,0,0,0,null,0,0,0,null,0,0,0,null,0,0]
[null,20,"Non-financial undertakings",1114.892589,0,0,0,0,0,0,0,0,0,0,0,0,0,0,0,0,0,0,0,0,0,0,0,0,0,0,0,0,0,0]
[null,21,"Loans and advances",1112.738057,0,0,0,0,0,0,0,0,0,0,0,0,0,0,0,0,0,0,0,0,0,0,0,0,0,0,0,0,0,0]
[null,22,"Debt securities, including UoP",0,0,0,0,0,0,0,0,0,0,0,0,0,0,0,0,0,0,0,0,0,0,0,0,0,0,0,0,0,0,0]
[null,23,"Equity instruments",2.1545320000000001,0,0,null,0,0,0,0,null,0,0,0,null,0,0,0,null,0,0,0,null,0,0,0,null,0,0,0,null,0,0]
[null,24,"Households",31896.230726000002,19554.971055000002,1388.2678699999999,0,0,0,0,0,0,0,null,null,null,null,0,0,0,0,null,null,null,null,null,null,null,null,19554.971055000002,1388.2678699999999,0,0,0]
[null,25,"of which loans collateralised by residential immovable property",17535.806741,17535.806741,1388.2678699999999,0,0,0,0,0,0,0,null,null,null,null,0,0,0,0,null,null,null,null,null,null,null,null,17535.806741,1388.2678699999999,0,0,0]
[null,26,"of which building renovation loans",0,0,0,0,0,0,0,0,0,0,null,null,null,null,0,0,0,0,null,null,null,null,null,null,null,null,0,0,0,0,0]
[null,27,"of which motor vehicle loans",2483.2513140000001,2019.1643140000001,0,0,0,0,null,null,null,null,null,null,null,null,null,null,null,null,null,null,null,null,null,null,null,null,2019.1643140000001,0,0,0,0]
[null,28,"Local governments financing",0,0,0,0,0,0,0,0,0,0,0,0,0,0,0,0,0,0,0,0,0,0,0,0,0,0,0,0,0,0,0]
[null,29,"Housing financing",0,0,0,0,0,0,0,0,0,0,0,0,0,0,0,0,0,0,0,0,0,0,0,0,0,0,0,0,0,0,0]
[null,30,"Other local government financing",0,0,0,0,0,0,0,0,0,0,0,0,0,0,0,0,0,0,0,0,0,0,0,0,0,0,0,0,0,0,0]
[null,31,"Collateral obtained by taking possession: residential and commercial immovable properties ",0,0,0,0,0,0,0,0,0,0,0,0,0,0,0,0,0,0,0,0,0,0,0,0,0,0,0,0,0,0,0]
[null,32,"Assets excluded from the numerator for GAR calculation (covered in the denominator)",59363.239336999999,0,0,0,0,0,0,0,0,0,0,0,0,0,0,0,0,0,0,0,0,0,0,0,0,0,0,0,0,0,0]
[null,33,"Financial and Non-financial undertakings",27402.122665999999]
[null,34,"SMEs and NFCs (other than SMEs) not subject to NFRD disclosure obligations",27402.122665999999]
[null,35,"Loans and advances",27402.122665999999]
[null,36,"of which loans collateralised by commercial immovable property",0]
[null,37,"of which building renovation loans",0]
[null,38,"Debt securities",0]
[null,39,"Equity instruments",0]
[null,40,"Non-EU country counterparties not subject to NFRD disclosure obligations",0]
[null,41,"Loans and advances",0]
[null,42,"Debt securities",0]
[null,43,"Equity instruments",0]
[null,44,"Derivatives",299.039579]
[null,45,"On demand interbank loans",134.15311199999999]
[null,46,"Cash and cash-related assets",2.3418000000000001E-2]
[null,47,"Other categories of assets (e.g. Goodwill, commodities etc.)",31527.900561999999]
[null,48,"Total GAR assets",125901.87327899999,22605.022162107201,1664.1435617641,0,2.5185027300000003E-2,0.55407060060000002,0,0,0,0,0,0,0,0,0,0,0,0,0,0,0,0,0,0,0,0,22605.022162107201,1664.1435617641,0,2.5185027300000003E-2,0.55407060060000002]
[null,49,"Assets not covered for GAR calculation",22227.349654000001]
[null,50,"Central governments and Supranational issuers",91.521131999999994]
[null,51,"Central banks exposure",864.52060800000004]
[null,52,"Trading book",21271.307914000001]
[null,53,"Total assets",148129.22293299998,22605.022162107201,1664.1435617641,0,2.5185027300000003E-2,0.55407060060000002,0,0,0,0,0,0,0,0,0,0,0,0,0,0,0,0,0,0,0,0,22605.022162107201,1664.1435617641,0,2.5185027300000003E-2,0.55407060060000002]
[null,"Off-balance sheet exposures - Undertakings subject to NFRD disclosure obligations"]
[null,54,"Financial guarantees",11053.980077,1752.4264295200001,162.75121368000001,0,0,0,0,0,0,0,0,0,0,0,0,0,0,0,0,0,0,0,0,0,0,0,1752.4264295200001,162.75121368000001,0,0,0]
[null,55,"Assets under management",9752.5576029960266,2616.8048946230906,793.07810591827035,0,42.325385789920716,427.22792954767721,3.8720178028060914,2.331205641440333,0,0.37031419054333597,0,0,0,0,0,0,0,0,0,0,0,0,0,0,0,0,2620.6769124258967,795.40931155971066,0,42.325385789920716,427.59824373822056]
[null,56,"Of which debt securities ",4317.8452244845867,1750.4298802672654,240.17393665416208,0,30.239995709525822,24.382230243635099,3.6944931166566031,2.2664525155800246,0,0.37031419054333597,0,0,0,0,0,0,0,0,0,0,0,0,0,0,0,0,1754.1243733839219,242.4403891697421,0,30.239995709525822,24.752544434178436]
[null,57,"Of which equity instruments ",5434.71237851144,866.3750143558251,552.9041692641083,0,12.085390080394895,402.84569930404211,0.17752468614948821,6.4753125860308444E-2,0,1.265262743169202E-3,0,0,0,0,0,0,0,0,0,0,0,0,0,0,0,0,866.55253904197457,552.96892238996861,0,12.085390080394895,402.84696456678529]
[]
[]
[]
[]
[]
[]
[]
[]
[null,"Million DKK",null,"31.12.2023"]
[null,null,null,"Total [gross] carrying amount ","Climate Change Mitigation (CCM)",null,null,null,null,"Climate Change Adaptation (CCA)",null,null,null,"Water and marine resources (WTR)",null,null,null,"Circular economy (CE)",null,null,null,"Pollution (PPC)",null,null,null,"Biodiversity and Ecosystems (BIO)",null,null,null,"TOTAL (CCM + CCA + WTR + CE + PPC + BIO)"]
[null,null,null,null,"Of which towards taxonomy relevant sectors (Taxonomy-eligible)",null,null,null,null,"Of which towards taxonomy relevant sectors (Taxonomy-eligible)",null,null,null,"Of which towards taxonomy relevant sectors (Taxonomy-eligible)",null,null,null,"Of which towards taxonomy relevant sectors (Taxonomy-eligible)",null,null,null,"Of which towards taxonomy relevant sectors (Taxonomy-eligible)",null,null,null,"Of which towards taxonomy relevant sectors (Taxonomy-eligible)"]
[null,null,null,null,null,"Of which environmentally sustainable (Taxonomy-aligned)",null,null,null,null,"Of which environmentally sustainable (Taxonomy-aligned)",null,null,null,"Of which environmentally sustainable (Taxonomy-aligned)",null,null,null,"Of which environmentally sustainable (Taxonomy-aligned)",null,null,null,"Of which environmentally sustainable (Taxonomy-aligned)",null,null,null,"Of which environmentally sustainable (Taxonomy-aligned)",null,null,null,"Of which environmentally sustainable (Taxonomy-aligned)"]
[null,null,null,null,null,null,"Of which Use of Proceeds","Of which transitional","Of which enabling",null,null,"Of which Use of Proceeds","Of which enabling",null,null,"Of which Use of Proceeds","Of which enabling",null,null,"Of which Use of Proceeds","Of which enabling",null,null,"Of which Use of Proceeds","Of which enabling",null,null,"Of which Use of Proceeds","Of which enabling",null,null,"Of which Use of Proceeds","Of which transitional","Of which enabling"]
[null,null,"GAR - Covered assets in both numerator and denominator"]
[null,1,"Loans and advances, debt securities and equity instruments not HfT eligible for GAR calculation",60325.558294000002,17314.263120980002,385.491399,0,0,0,0,0,0,0,0,0,0,0,0,0,0,0,0,0,0,0,0,0,0,0,17314.263120980002,385.491399,0,0,0]
[null,2,"Financial undertakings",29657.021184000001,518.20146898000007,0,0,0,0,0,0,0,0,0,0,0,0,0,0,0,0,0,0,0,0,0,0,0,0,518.20146898000007,0,0,0,0]
[null,3,"Credit institutions",13919.395376,518.20146898000007,0,0,0,0,0,0,0,0,0,0,0,0,0,0,0,0,0,0,0,0,0,0,0,0,518.20146898000007,0,0,0,0]
[null,4,"Loans and advances",2057.2222969999998,518.20146898000007,0,0,0,0,0,0,0,0,0,0,0,0,0,0,0,0,0,0,0,0,0,0,0,0,518.20146898000007,0,0,0,0]
[null,5,"Debt securities, including UoP",10999.261431999999,0,0,0,0,0,0,0,0,0,0,0,0,0,0,0,0,0,0,0,0,0,0,0,0,0,0,0,0,0,0]
[null,6,"Equity instruments",862.91164700000002,0,0,null,0,0,0,0,null,0,0,0,null,0,0,0,null,0,0,0,null,0,0,0,null,0,0,0,null,0,0]
[null,7,"Other financial corporations",15737.625808000001,0,0,0,0,0,0,0,0,0,0,0,0,0,0,0,0,0,0,0,0,0,0,0,0,0,0,0,0,0,0]
[null,8,"of which investment firms",0,0,0,0,0,0,0,0,0,0,0,0,0,0,0,0,0,0,0,0,0,0,0,0,0,0,null,null,0,0,0]
[null,9,"Loans and advances",15218.531628000001,0,0,0,0,0,0,0,0,0,0,0,0,0,0,0,0,0,0,0,0,0,0,0,0,0,0,0,0,0,0]
[null,10,"Debt securities, including UoP",0,0,0,0,0,0,0,0,0,0,0,0,0,0,0,0,0,0,0,0,0,0,0,0,0,0,null,null,0,0,0]
[null,11,"Equity instruments",519.09418000000005,0,0,null,0,0,0,0,null,0,0,0,null,0,0,0,null,0,0,0,null,0,0,0,null,0,0,0,null,0,0]
[null,12,"of which  management companies",0,0,0,0,0,0,0,0,0,0,0,0,0,0,0,0,0,0,0,0,0,0,0,0,0,0,0,0,0,0,0]
[null,13,"Loans and advances",0,0,0,0,0,0,0,0,0,0,0,0,0,0,0,0,0,0,0,0,0,0,0,0,0,0,0,0,0,0,0]
[null,14,"Debt securities, including UoP",0,0,0,0,0,0,0,0,0,0,0,0,0,0,0,0,0,0,0,0,0,0,0,0,0,0,0,0,0,0,0]
[null,15,"Equity instruments",0,0,0,0,0,0,0,0,0,0,0,0,0,0,0,0,0,0,0,0,0,0,0,0,0,0,0,0,0,0,0]
[null,16,"of which insurance undertakings",0,0,0,0,0,0,0,0,0,0,0,0,0,0,0,0,0,0,0,0,0,0,0,0,0,0,0,0,0,0,0]
[null,17,"Loans and advances",0,0,0,0,0,0,0,0,0,0,0,0,0,0,0,0,0,0,0,0,0,0,0,0,0,0,0,0,0,0,0]
[null,18,"Debt securities, including UoP",0,0,0,0,0,0,0,0,0,0,0,0,0,0,0,0,0,0,0,0,0,0,0,0,0,0,0,0,0,0,0]
[null,19,"Equity instruments",0,0,0,null,0,0,0,0,null,0,0,0,null,0,0,0,null,0,0,0,null,0,0,0,null,0,0,0]
[null,20,"Non-financial undertakings",1451.7396749999998,0,0,0,0,0,0,0,0,0,0,0,0,0,0,0,0,0,0,0,0,0,0,0,0,0,0,0,0,0,0]
[null,21,"Loans and advances",1189.2376839999999,0,0,0,0,0,0,0,0,0,0,0,0,0,0,0,0,0,0,0,0,0,0,0,0,0,0,0,0,0,0]
[null,22,"Debt securities, including UoP",0,0,0,0,0,0,0,0,0,0,0,0,0,0,0,0,0,0,0,0,0,0,0,0,0,0,0,0,0,0,0]
[null,23,"Equity instruments",262.50199099999998,0,0,null,0,0,0,0,null,0,0,0,null,0,0,0,null,0,0,0,null,0,0,0,null,0,0,0,null,0,0]
[null,24,"Households",29216.797435,16796.061652,385.491399,0,0,0,0,0,0,0,null,null,null,null,0,0,0,0,null,null,null,null,null,null,null,null,16796.061652,385.491399,0,0,0]
[null,25,"of which loans collateralised by residential immovable property",15428.144215,15428.144215,385.491399,0,0,0,0,0,0,0,null,null,null,null,0,0,0,0,null,null,null,null,null,null,null,null,15428.144215,385.491399,0,0,0]
[null,26,"of which building renovation loans",0,0,0,0,0,0,0,0,0,0,null,null,null,null,0,0,0,0,null,null,null,null,null,null,null,null,0,0,0,0,0]
[null,27,"of which motor vehicle loans",2157.1864430000001,1367.9174370000001,0,0,0,0,null,null,null,null,null,null,null,null,null,null,null,null,null,null,null,null,null,null,null,null,1367.9174370000001,0,0,0,0]
[null,28,"Local governments financing",0,0,0,0,0,0,0,0,0,0,0,0,0,0,0,0,0,0,0,0,0,0,0,0,0,0,0,0,0,0,0]
[null,29,"Housing financing",0,0,0,0,0,0,0,0,0,0,0,0,0,0,0,0,0,0,0,0,0,0,0,0,0,0,0,0,0,0,0]
[null,30,"Other local government financing",0,0,0,0,0,0,0,0,0,0,0,0,0,0,0,0,0,0,0,0,0,0,0,0,0,0,0,0,0,0,0]
[null,31,"Collateral obtained by taking possession: residential and commercial immovable properties ",0,0,0,0,0,0,0,0,0,0,0,0,0,0,0,0,0,0,0,0,0,0,0,0,0,0,0,0,0,0,0]
[null,32,"Assets excluded from the numerator for GAR calculation (covered in the denominator)",53266.008081,0,0,0,0,0,0,0,0,0,0,0,0,0,0,0,0,0,0,0,0,0,0,0,0,0,0,0,0,0,0]
[null,33,"Financial and Non-financial undertakings",24645.637807999999]
[null,34,"SMEs and NFCs (other than SMEs) not subject to NFRD disclosure obligations",24645.637807999999]
[null,35,"Loans and advances",24645.637807999999]
[null,36,"of which loans collateralised by commercial immovable property",0]
[null,37,"of which building renovation loans",0]
[null,38,"Debt securities",0]
[null,39,"Equity instruments",0]
[null,40,"Non-EU country counterparties not subject to NFRD disclosure obligations",0]
[null,41,"Loans and advances",0]
[null,42,"Debt securities",0]
[null,43,"Equity instruments",0]
[null,44,"Derivatives",449.32004499999999]
[null,45,"On demand interbank loans",148.75940499999999]
[null,46,"Cash and cash-related assets",5.0237999999999998E-2]
[null,47,"Other categories of assets (e.g. Goodwill, commodities etc.)",28022.240585]
[null,48,"Total GAR assets",113591.56637499999,17314.263120980002,385.491399,0,0,0,0,0,0,0,0,0,0,0,0,0,0,0,0,0,0,0,0,0,0,0,17314.263120980002,385.491399,0,0,0]
[null,49,"Assets not covered for GAR calculation",23788.515158999999]
[null,50,"Central governments and Supranational issuers",782.32939999999996]
[null,51,"Central banks exposure",217.722644]
[null,52,"Trading book",22788.463114999999]
[null,53,"Total assets",137380.081534,0,0,0,0,0,0,0,0,0,0,0,0,0,0,0,0,0,0,0,0,0,0,0,0,0,0,0,0,0,0]
[null,"Off-balance sheet exposures - Undertakings subject to NFRD disclosure obligations"]
[null,54,"Financial guarantees",9724.4778380000007,0,0,0,0,0,0,0,0,0,0,0,0,0,0,0,0,0,0,0,0,0,0,0,0,0,0,0,0,0,0]
[null,55,"Assets under management",8263.1539723129154,606.34459351726377,585.98403623726369,0,5.4493060038399994,392.29537621796737,0,0,0,0,0,0,0,0,0,0,0,0,0,0,0,0,0,0,0,0,606.34459351726377,585.98403623726369,0,5.4493060038399994,392.29537621796737]
[null,56,"Of which debt securities ",3417.9396047622463,68.566432037133012,68.566432037133012,0,1.2675296295999998,23.845673793940001,0,0,0,0,0,0,0,0,0,0,0,0,0,0,0,0,0,0,0,0,68.566432037133012,68.566432037133012,0,1.2675296295999998,23.845673793940001]
[null,57,"Of which equity instruments ",4845.2143675506695,537.77816148013096,517.41760420013077,0,4.18177637424,368.44970242402741,0,0,0,0,0,0,0,0,0,0,0,0,0,0,0,0,0,0,0,0,537.77816148013096,517.41760420013077,0,4.18177637424,368.44970242402741]
[]
[]
[]
[]
[]
[]
[]
[null,null,"Efter kopiering til Word:"]
[]
[null,null,"Skrifttype:  7"]
[null,null,"Kolonne A: Foretrukken bredde: 10"]
[null,null,"Kolonne B: Foretrukken bredde: 4"]
[null,null,"Kolonne C: Foretrukken bredde: 3"]

{"sheet":"1. Cov Ass (GAR,off-b CAPEX)","index":5,"n_rows":140,"n_cols":34,"rows_kept":140,"cut":false,"hidden":false,"merged":[[4,1,8,2],[4,3,4,33],[5,3,8,3],[5,4,5,8],[5,9,5,12],[5,13,5,16],[5,17,5,20],[5,21,5,24],[5,25,5,28],[5,29,5,33],[6,29,6,33],[7,5,7,8],[7,10,7,12],[7,14,7,16],[7,18,7,20],[7,22,7,24],[7,26,7,28],[7,30,7,33],[6,4,6,8],[6,9,6,12],[6,13,6,16],[6,17,6,20],[6,21,6,24],[6,25,6,28],[63,1,63,33],[76,1,80,2],[76,3,76,33],[77,3,80,3],[77,4,77,8],[77,9,77,12],[77,13,77,16],[77,17,77,20],[77,21,77,24],[77,25,77,28],[79,30,79,33],[135,1,135,33],[1,1,1,4],[79,5,79,8],[79,10,79,12],[79,14,79,16],[79,18,79,20],[79,22,79,24],[79,26,79,28],[77,29,77,33],[78,4,78,8],[78,9,78,12],[78,13,78,16],[78,17,78,20],[78,21,78,24],[78,25,78,28],[78,29,78,33]]}
[]
[null,"1. Assets for the calculation of GAR - CAPEX"]
[]
[]
[null,"Million DKK",null,"31.12.2024"]
[null,null,null,"Total [gross] carrying amount ","Climate Change Mitigation (CCM)",null,null,null,null,"Climate Change Adaptation (CCA)",null,null,null,"Water and marine resources (WTR)",null,null,null,"Circular economy (CE)",null,null,null,"Pollution (PPC)",null,null,null,"Biodiversity and Ecosystems (BIO)",null,null,null,"TOTAL (CCM + CCA + WTR + CE + PPC + BIO)"]
[null,null,null,null,"Of which towards taxonomy relevant sectors (Taxonomy-eligible)",null,null,null,null,"Of which towards taxonomy relevant sectors (Taxonomy-eligible)",null,null,null,"Of which towards taxonomy relevant sectors (Taxonomy-eligible)",null,null,null,"Of which towards taxonomy relevant sectors (Taxonomy-eligible)",null,null,null,"Of which towards taxonomy relevant sectors (Taxonomy-eligible)",null,null,null,"Of which towards taxonomy relevant sectors (Taxonomy-eligible)"]
[null,null,null,null,null,"Of which environmentally sustainable (Taxonomy-aligned)",null,null,null,null,"Of which environmentally sustainable (Taxonomy-aligned)",null,null,null,"Of which environmentally sustainable (Taxonomy-aligned)",null,null,null,"Of which environmentally sustainable (Taxonomy-aligned)",null,null,null,"Of which environmentally sustainable (Taxonomy-aligned)",null,null,null,"Of which environmentally sustainable (Taxonomy-aligned)",null,null,null,"Of which environmentally sustainable (Taxonomy-aligned)"]
[null,null,null,null,null,null,"Of which Use of Proceeds","Of which transitional","Of which enabling",null,null,"Of which Use of Proceeds","Of which enabling",null,null,"Of which Use of Proceeds","Of which enabling",null,null,"Of which Use of Proceeds","Of which enabling",null,null,"Of which Use of Proceeds","Of which enabling",null,null,"Of which Use of Proceeds","Of which enabling",null,null,"Of which Use of Proceeds","Of which transitional","Of which enabling"]
[null,null,"GAR - Covered assets in both numerator and denominator"]
[null,1,"Loans and advances, debt securities and equity instruments not HfT eligible for GAR calculation",66538.633942,19916.487221304902,1418.7133681835999,0,0,0,0,0,0,0,0,0,0,0,0,0,0,0,0,0,0,0,0,0,0,0,19916.487221304902,1418.7133681835999,0,0,0]
[null,2,"Financial undertakings",33527.510626999996,361.51616630490003,30.445498183599998,0,0,0,0,0,0,0,0,0,0,0,0,0,0,0,0,0,0,0,0,0,0,0,361.51616630490003,30.445498183599998,0,0,0]
[null,3,"Credit institutions",15369.374702000001,361.51616630490003,30.445498183599998,0,0,0,0,0,0,0,0,0,0,0,0,0,0,0,0,0,0,0,0,0,0,0,361.51616630490003,30.445498183599998,0,0,0]
[null,4,"Loans and advances",1343.3518590000001,361.51616630490003,30.445498183599998,0,0,0,0,0,0,0,0,0,0,0,0,0,0,0,0,0,0,0,0,0,0,0,361.51616630490003,30.445498183599998,0,0,0]
[null,5,"Debt securities, including UoP",13200.467113000001,0,0,0,0,0,0,0,0,0,0,0,0,0,0,0,0,0,0,0,0,0,0,0,0,0,0,0,0,0,0]
[null,6,"Equity instruments",825.55573000000004,0,0,null,0,0,0,0,null,0,0,0,null,0,0,0,null,0,0,0,null,0,0,0,null,0,0,0,null,0,0]
[null,7,"Other financial corporations",18158.135924999999,0,0,0,0,0,0,0,0,0,0,0,0,0,0,0,0,0,0,0,0,0,0,0,0,0,0,0,0,0,0]
[null,8,"of which investment firms",0,0,0,0,0,0,0,0,0,0,0,0,0,0,0,0,0,0,0,0,0,0,0,0,0,0,0,0,0,0,0]
[null,9,"Loans and advances",17346.771384,0,0,0,0,0,0,0,0,0,0,0,0,0,0,0,0,0,0,0,0,0,0,0,0,0,0,0,0,0,0]
[null,10,"Debt securities, including UoP",0,0,0,0,0,0,0,0,0,0,0,0,0,0,0,0,0,0,0,0,0,0,0,0,0,0,0,0,0,0,0]
[null,11,"Equity instruments",811.36454100000003,0,0,null,0,0,0,0,null,0,0,0,null,0,0,0,null,0,0,0,null,0,0,0,null,0,0,0,null,0,0]
[null,12,"of which  management companies",0,0,0,0,0,0,0,0,0,0,0,0,0,0,0,0,0,0,0,0,0,0,0,0,0,0,0,0,0,0,0]
[null,13,"Loans and advances",0,0,0,0,0,0,0,0,0,0,0,0,0,0,0,0,0,0,0,0,0,0,0,0,0,0,0,0,0,0,0]
[null,14,"Debt securities, including UoP",0,0,0,0,0,0,0,0,0,0,0,0,0,0,0,0,0,0,0,0,0,0,0,0,0,0,0,0,0,0,0]
[null,15,"Equity instruments",0,0,0,0,0,0,0,0,0,0,0,0,0,0,0,0,0,0,0,0,0,0,0,0,0,0,0,0,0,0,0]
[null,16,"of which insurance undertakings",0,0,0,0,0,0,0,0,0,0,0,0,0,0,0,0,0,0,0,0,0,0,0,0,0,0,0,0,0,0,0]
[null,17,"Loans and advances",0,0,0,0,0,0,0,0,0,0,0,0,0,0,0,0,0,0,0,0,0,0,0,0,0,0,0,0,0,0,0]
[null,18,"Debt securities, including UoP",0,0,0,0,0,0,0,0,0,0,0,0,0,0,0,0,0,0,0,0,0,0,0,0,0,0,0,0,0,0,0]
[null,19,"Equity instruments",0,0,0,null,0,0,0,0,null,0,0,0,null,0,0,0,null,0,0,0,null,0,0,0,null,0,0,0,null,0,0]
[null,20,"Non-financial undertakings",1114.892589,0,0,0,0,0,0,0,0,0,0,0,0,0,0,0,0,0,0,0,0,0,0,0,0,0,0,0,0,0,0]
[null,21,"Loans and advances",1112.738057,0,0,0,0,0,0,0,0,0,0,0,0,0,0,0,0,0,0,0,0,0,0,0,0,0,0,0,0,0,0]
[null,22,"Debt securities, including UoP",0,0,0,0,0,0,0,0,0,0,0,0,0,0,0,0,0,0,0,0,0,0,0,0,0,0,0,0,0,0,0]
[null,23,"Equity instruments",2.1545320000000001,0,0,null,0,0,0,0,null,0,0,0,null,0,0,0,null,0,0,0,null,0,0,0,null,0,0,0,null,0,0]
[null,24,"Households",31896.230726000002,19554.971055000002,1388.2678699999999,0,0,0,0,0,0,0,null,null,null,null,0,0,0,0,null,null,null,null,null,null,null,null,19554.971055000002,1388.2678699999999,0,0,0]
[null,25,"of which loans collateralised by residential immovable property",17535.806741,17535.806741,1388.2678699999999,0,0,0,0,0,0,0,null,null,null,null,0,0,0,0,null,null,null,null,null,null,null,null,17535.806741,1388.2678699999999,0,0,0]
[null,26,"of which building renovation loans",0,0,0,0,0,0,0,0,0,0,null,null,null,null,0,0,0,0,null,null,null,null,null,null,null,null,0,0,0,0,0]
[null,27,"of which motor vehicle loans",2483.2513140000001,2019.1643140000001,0,0,0,0,null,null,null,null,null,null,null,null,null,null,null,null,null,null,null,null,null,null,null,null,2019.1643140000001,0,0,0,0]
[null,28,"Local governments financing",0,0,0,0,0,0,0,0,0,0,0,0,0,0,0,0,0,0,0,0,0,0,0,0,0,0,0,0,0,0,0]
[null,29,"Housing financing",0,0,0,0,0,0,0,0,0,0,0,0,0,0,0,0,0,0,0,0,0,0,0,0,0,0,0,0,0,0,0]
[null,30,"Other local government financing",0,0,0,0,0,0,0,0,0,0,0,0,0,0,0,0,0,0,0,0,0,0,0,0,0,0,0,0,0,0,0]
[null,31,"Collateral obtained by taking possession: residential and commercial immovable properties ",0,0,0,0,0,0,0,0,0,0,0,0,0,0,0,0,0,0,0,0,0,0,0,0,0,0,0,0,0,0,0]
[null,32,"Assets excluded from the numerator for GAR calculation (covered in the denominator)",59363.239336999999,0,0,0,0,0,0,0,0,0,0,0,0,0,0,0,0,0,0,0,0,0,0,0,0,0,0,0,0,0,0]
[null,33,"Financial and Non-financial undertakings",27402.122665999999]
[null,34,"SMEs and NFCs (other than SMEs) not subject to NFRD disclosure obligations",27402.122665999999]
[null,35,"Loans and advances",27402.122665999999]
[null,36,"of which loans collateralised by commercial immovable property",0]
[null,37,"of which building renovation loans",0]
[null,38,"Debt securities",0]
[null,39,"Equity instruments",0]
[null,40,"Non-EU country counterparties not subject to NFRD disclosure obligations",0]
[null,41,"Loans and advances",0]
[null,42,"Debt securities",0]
[null,43,"Equity instruments",0]
[null,44,"Derivatives",299.039579]
[null,45,"On demand interbank loans",134.15311199999999]
[null,46,"Cash and cash-related assets",2.3418000000000001E-2]
[null,47,"Other categories of assets (e.g. Goodwill, commodities etc.)",31527.900561999999]
[null,48,"Total GAR assets",125901.87327899999,19916.487221304902,1418.7133681835999,0,0,0,0,0,0,0,0,0,0,0,0,0,0,0,0,0,0,0,0,0,0,0,19916.487221304902,1418.7133681835999,0,0,0]
[null,49,"Assets not covered for GAR calculation",0]
[null,50,"Central governments and Supranational issuers",91.521131999999994]
[null,51,"Central banks exposure",864.52060800000004]
[null,52,"Trading book",21271.307914000001]
[null,53,"Total assets",148129.22293299998,19916.487221304902,1418.7133681835999,0,0,0,0,0,0,0,0,0,0,0,0,0,0,0,0,0,0,0,0,0,0,0,19916.487221304902,1418.7133681835999,0,0,0]
[null,"Off-balance sheet exposures - Undertakings subject to NFRD disclosure obligations"]
[null,54,"Financial guarantees",11053.980077,1716.7189765320002,159.91664883400003,0,0,0,0,0,0,0,0,0,0,0,0,0,0,0,0,0,0,0,0,0,0,0,1716.7189765320002,159.91664883400003,0,0,0]
[null,55,"Assets under management",9752.5576029960266,1361.7437518553215,868.0602908147398,0,48.133548325132494,561.45764851818217,90.215401738945445,43.984876265715094,0,9.9667251571334923,0,0,0,0,0,0,0,0,0,0,0,0,0,0,0,0,1451.959153594267,912.04516708045492,0,48.133548325132494,571.42437367531568]
[null,56,"Of which debt securities ",4317.8452244845867,380.16678184988609,143.42838115760259,0,31.204128899345719,40.02784276738732,43.239979520157597,41.32901663480245,0,9.9654598943903228,0,0,0,0,0,0,0,0,0,0,0,0,0,0,0,0,423.40676137004368,184.75739779240504,0,31.204128899345719,49.993302661777641]
[null,57,"Of which equity instruments ",5434.71237851144,981.57697000543556,724.63190965713727,0,16.929419425786776,521.4298057507948,46.975422218787855,2.6558596309126474,0,1.265262743169202E-3,0,0,0,0,0,0,0,0,0,0,0,0,0,0,0,0,1028.5523922242235,727.28776928804996,0,16.929419425786776,521.43107101353792]
[]
[]
[]
[]
[]
[]
[]
[]
[null,"Million DKK",null,"31.12.2023"]
[null,null,null,"Total [gross] carrying amount ","Climate Change Mitigation (CCM)",null,null,null,null,"Climate Change Adaptation (CCA)",null,null,null,"Water and marine resources (WTR)",null,null,null,"Circular economy (CE)",null,null,null,"Pollution (PPC)",null,null,null,"Biodiversity and Ecosystems (BIO)",null,null,null,"TOTAL (CCM + CCA + WTR + CE + PPC + BIO)"]
[null,null,null,null,"Of which towards taxonomy relevant sectors (Taxonomy-eligible)",null,null,null,null,"Of which towards taxonomy relevant sectors (Taxonomy-eligible)",null,null,null,"Of which towards taxonomy relevant sectors (Taxonomy-eligible)",null,null,null,"Of which towards taxonomy relevant sectors (Taxonomy-eligible)",null,null,null,"Of which towards taxonomy relevant sectors (Taxonomy-eligible)",null,null,null,"Of which towards taxonomy relevant sectors (Taxonomy-eligible)"]
[null,null,null,null,null,"Of which environmentally sustainable (Taxonomy-aligned)",null,null,null,null,"Of which environmentally sustainable (Taxonomy-aligned)",null,null,null,"Of which environmentally sustainable (Taxonomy-aligned)",null,null,null,"Of which environmentally sustainable (Taxonomy-aligned)",null,null,null,"Of which environmentally sustainable (Taxonomy-aligned)",null,null,null,"Of which environmentally sustainable (Taxonomy-aligned)",null,null,null,"Of which environmentally sustainable (Taxonomy-aligned)"]
[null,null,null,null,null,null,"Of which Use of Proceeds","Of which transitional","Of which enabling",null,null,"Of which Use of Proceeds","Of which enabling",null,null,"Of which Use of Proceeds","Of which enabling",null,null,"Of which Use of Proceeds","Of which enabling",null,null,"Of which Use of Proceeds","Of which enabling",null,null,"Of which Use of Proceeds","Of which enabling",null,null,"Of which Use of Proceeds","Of which transitional","Of which enabling"]
[null,null,"GAR - Covered assets in both numerator and denominator"]
[null,1,"Loans and advances, debt securities and equity instruments not HfT eligible for GAR calculation",60325.558294000002,17315.973903819999,385.491399,0,0,0,0,0,0,0,0,0,0,0,0,0,0,0,0,0,0,0,0,0,0,0,17314.263120980002,385.491399,0,0,0]
[null,2,"Financial undertakings",29657.021184000001,518.20146898000007,0,0,0,0,0,0,0,0,0,0,0,0,0,0,0,0,0,0,0,0,0,0,0,0,518.20146898000007,0,0,0,0]
[null,3,"Credit institutions",13919.395376,518.20146898000007,0,0,0,0,0,0,0,0,0,0,0,0,0,0,0,0,0,0,0,0,0,0,0,0,518.20146898000007,0,0,0,0]
[null,4,"Loans and advances",2057.2222969999998,518.20146898000007,0,0,0,0,0,0,0,0,0,0,0,0,0,0,0,0,0,0,0,0,0,0,0,0,518.20146898000007,0,0,0,0]
[null,5,"Debt securities, including UoP",10999.261431999999,0,0,0,0,0,0,0,0,0,0,0,0,0,0,0,0,0,0,0,0,0,0,0,0,0,0,0,0,0,0]
[null,6,"Equity instruments",862.91164700000002,0,0,null,0,0,0,0,null,0,0,0,null,0,0,0,null,0,0,0,null,0,0,0,null,0,0,0,null,0,0]
[null,7,"Other financial corporations",15737.625808000001,0,0,0,0,0,0,0,0,0,0,0,0,0,0,0,0,0,0,0,0,0,0,0,0,0,0,0,0,0,0]
[null,8,"of which investment firms",0,0,0,0,0,0,0,0,0,0,0,0,0,0,0,0,0,0,0,0,0,0,0,0,0,0,0,0,0,0,0]
[null,9,"Loans and advances",15218.531628000001,0,0,0,0,0,0,0,0,0,0,0,0,0,0,0,0,0,0,0,0,0,0,0,0,0,0,0,0,0,0]
[null,10,"Debt securities, including UoP",0,0,0,0,0,0,0,0,0,0,0,0,0,0,0,0,0,0,0,0,0,0,0,0,0,0,0,0,0,0,0]
[null,11,"Equity instruments",519.09418000000005,0,0,null,0,0,0,0,null,0,0,0,null,0,0,0,null,0,0,0,null,0,0,0,null,0,0,0,null,0,0]
[null,12,"of which  management companies",0,0,0,0,0,0,0,0,0,0,0,0,0,0,0,0,0,0,0,0,0,0,0,0,0,0,0,0,0,0,0]
[null,13,"Loans and advances",0,0,0,0,0,0,0,0,0,0,0,0,0,0,0,0,0,0,0,0,0,0,0,0,0,0,0,0,0,0,0]
[null,14,"Debt securities, including UoP",0,0,0,0,0,0,0,0,0,0,0,0,0,0,0,0,0,0,0,0,0,0,0,0,0,0,0,0,0,0,0]
[null,15,"Equity instruments",0,0,0,0,0,0,0,0,0,0,0,0,0,0,0,0,0,0,0,0,0,0,0,0,0,0,0,0,0,0,0]
[null,16,"of which insurance undertakings",0,0,0,0,0,0,0,0,0,0,0,0,0,0,0,0,0,0,0,0,0,0,0,0,0,0,0,0,0,0,0]
[null,17,"Loans and advances",0,0,0,0,0,0,0,0,0,0,0,0,0,0,0,0,0,0,0,0,0,0,0,0,0,0,0,0,0,0,0]
[null,18,"Debt securities, including UoP",0,0,0,0,0,0,0,0,0,0,0,0,0,0,0,0,0,0,0,0,0,0,0,0,0,0,0,0,0,0,0]
[null,19,"Equity instruments",0,0,0,null,0,0,0,0,null,0,0,0,null,0,0,0,null,0,0,0,null,0,0,0,null,0,0,0,null,0,0]
[null,20,"Non-financial undertakings",1451.7396749999998,1.71078284,0,0,0,0,0,0,0,0,0,0,0,0,0,0,0,0,0,0,0,0,0,0,0,0,0,0,0,0,0]
[null,21,"Loans and advances",1189.2376839999999,1.71078284,0,0,0,0,0,0,0,0,0,0,0,0,0,0,0,0,0,0,0,0,0,0,0,0,0,0,0,0,0]
[null,22,"Debt securities, including UoP",0,0,0,0,0,0,0,0,0,0,0,0,0,0,0,0,0,0,0,0,0,0,0,0,0,0,0,0,0,0,0]
[null,23,"Equity instruments",262.50199099999998,0,0,null,0,0,0,0,null,0,0,0,null,0,0,0,null,0,0,0,null,0,0,0,null,0,0,0,null,0,0]
[null,24,"Households",29216.797435,16796.061652,385.491399,0,0,0,0,0,0,0,null,null,null,null,0,0,0,0,null,null,null,null,null,null,null,null,16796.061652,385.491399,0,0,0]
[null,25,"of which loans collateralised by residential immovable property",15428.144215,15428.144215,385.491399,0,0,0,0,0,0,0,null,null,null,null,0,0,0,0,null,null,null,null,null,null,null,null,15428.144215,385.491399,0,0,0]
[null,26,"of which building renovation loans",0,0,0,0,0,0,0,0,0,0,null,null,null,null,0,0,0,0,null,null,null,null,null,null,null,null,0,0,0,0,0]
[null,27,"of which motor vehicle loans",2157.1864430000001,1367.9174370000001,0,0,0,0,null,null,null,null,null,null,null,null,null,null,null,null,null,null,null,null,null,null,null,null,1367.9174370000001,0,0,0,0]
[null,28,"Local governments financing",0,0,0,0,0,0,0,0,0,0,0,0,0,0,0,0,0,0,0,0,0,0,0,0,0,0,0,0,0,0,0]
[null,29,"Housing financing",0,0,0,0,0,0,0,0,0,0,0,0,0,0,0,0,0,0,0,0,0,0,0,0,0,0,0,0,0,0,0]
[null,30,"Other local government financing",0,0,0,0,0,0,0,0,0,0,0,0,0,0,0,0,0,0,0,0,0,0,0,0,0,0,0,0,0,0,0]
[null,31,"Collateral obtained by taking possession: residential and commercial immovable properties ",0,0,0,0,0,0,0,0,0,0,0,0,0,0,0,0,0,0,0,0,0,0,0,0,0,0,0,0,0,0,0]
[null,32,"Assets excluded from the numerator for GAR calculation (covered in the denominator)",53266.008081,0,0,0,0,0,0,0,0,0,0,0,0,0,0,0,0,0,0,0,0,0,0,0,0,0,0,0,0,0,0]
[null,33,"Financial and Non-financial undertakings",24645.637807999999]
[null,34,"SMEs and NFCs (other than SMEs) not subject to NFRD disclosure obligations",24645.637807999999]
[null,35,"Loans and advances",24645.637807999999]
[null,36,"of which loans collateralised by commercial immovable property",0]
[null,37,"of which building renovation loans",0]
[null,38,"Debt securities",0]
[null,39,"Equity instruments",0]
[null,40,"Non-EU country counterparties not subject to NFRD disclosure obligations",0]
[null,41,"Loans and advances",0]
[null,42,"Debt securities",0]
[null,43,"Equity instruments",0]
[null,44,"Derivatives",449.32004499999999]
[null,45,"On demand interbank loans",148.75940499999999]
[null,46,"Cash and cash-related assets",5.0237999999999998E-2]
[null,47,"Other categories of assets (e.g. Goodwill, commodities etc.)",28022.240585]
[null,48,"Total GAR assets",113591.56637499999,17315.973903819999,385.491399,0,0,0,0,0,0,0,0,0,0,0,0,0,0,0,0,0,0,0,0,0,0,0,17314.263120980002,385.491399,0,0,0]
[null,49,"Assets not covered for GAR calculation",23788.515158999999]
[null,50,"Central governments and Supranational issuers",782.32939999999996]
[null,51,"Central banks exposure",217.722644]
[null,52,"Trading book",22788.463114999999]
[null,53,"Total assets",137380.081534,17315.973903819999,385.491399,0,0,0,0,0,0,0,0,0,0,0,0,0,0,0,0,0,0,0,0,0,0,0,17314.263120980002,385.491399,0,0,0]
[null,"Off-balance sheet exposures - Undertakings subject to NFRD disclosure obligations"]
[null,54,"Financial guarantees",9724.4778380000007,0,0,0,0,0,0,0,0,0,0,0,0,0,0,0,0,0,0,0,0,0,0,0,0,0,{"$f":"+E137+J137","v":0},{"$f":"+F137+K137","v":0},{"$f":"+G137+L137","v":0},{"$f":"+H137","v":0},{"$f":"+I137+M137","v":0}]
[null,55,"Assets under management",8263.1539723129154,449.74467698170469,427.42265772122875,0,2.7320217671180003,337.58532510313887,0,0,0,0,0,0,0,0,0,0,0,0,0,0,0,0,0,0,0,0,{"$f":"+E138+J138","v":449.74467698170469},427.42265772122875,0,2.7320217671180003,{"$f":"+I138+M138","v":337.58532510313887}]
[null,56,"Of which debt securities ",3417.9396047622463,32.913577808202,32.913577808202,0,0.49376422943800002,10.012376920027998,0,0,0,0,0,0,0,0,0,0,0,0,0,0,0,0,0,0,0,0,32.913577808202,32.913577808202,0,0.49376422943800002,10.012376920027998]
[null,57,"Of which equity instruments ",4845.2143675506695,416.83109917350271,394.50907991302671,0,2.23825753768,327.5729481831109,0,0,0,0,0,0,0,0,0,0,0,0,0,0,0,0,0,0,0,0,416.83109917350271,394.50907991302671,0,2.23825753768,327.5729481831109]

{"sheet":"2. GAR - Sector inform Turnover","index":6,"n_rows":14,"n_cols":31,"rows_kept":14,"cut":false,"hidden":false,"merged":[[6,29,6,30],[7,27,7,28],[7,29,7,30],[6,15,6,16],[6,17,6,18],[7,15,7,16],[7,17,7,18],[6,19,6,20],[6,21,6,22],[7,19,7,20],[7,21,7,22],[6,23,6,24],[6,25,6,26],[7,23,7,24],[7,25,7,26],[6,27,6,28],[7,13,7,14],[7,3,7,4],[7,5,7,6],[6,3,6,4],[6,5,6,6],[6,7,6,8],[5,27,5,30],[6,11,6,12],[6,13,6,14],[1,1,1,3],[4,1,8,2],[4,3,4,30],[5,3,5,6],[5,7,5,10],[5,11,5,14],[5,15,5,18],[5,19,5,22],[5,23,5,26],[6,9,6,10],[7,7,7,8],[7,9,7,10],[7,11,7,12]]}
[]
[null,"2. GAR sector information - Turnover"]
[]
[]
[null,"Breakdown by sector - NACE 4 digits level (code and label)"]
[null,null,null,"Climate Change Mitigation (CCM)",null,null,null,"Climate Change Adaptation (CCA)",null,null,null,"Water and marine resources (WTR)",null,null,null,"Circular economy (CE)",null,null,null,"Pollution (PPC)",null,null,null,"Biodiversity and Ecosystems (BIO)",null,null,null,"TOTAL (CCM + CCA + WTR + CE + PPC + BIO)"]
[null,null,null,"Non-Financial corporates (Subject to NFRD)",null,"SMEs and other NFC not subject to NFRD",null,"Non-Financial corporates (Subject to NFRD)",null,"SMEs and other NFC not subject to NFRD",null,"Non-Financial corporates (Subject to NFRD)",null,"SMEs and other NFC not subject to NFRD",null,"Non-Financial corporates (Subject to NFRD)",null,"SMEs and other NFC not subject to NFRD",null,"Non-Financial corporates (Subject to NFRD)",null,"SMEs and other NFC not subject to NFRD",null,"Non-Financial corporates (Subject to NFRD)",null,"SMEs and other NFC not subject to NFRD",null,"Non-Financial corporates (Subject to NFRD)",null,"SMEs and other NFC not subject to NFRD"]
[null,null,null,"[Gross] carrying amount",null,"[Gross] carrying amount",null,"[Gross] carrying amount",null,"[Gross] carrying amount",null,"[Gross] carrying amount",null,"[Gross] carrying amount",null,"[Gross] carrying amount",null,"[Gross] carrying amount",null,"[Gross] carrying amount",null,"[Gross] carrying amount",null,"[Gross] carrying amount",null,"[Gross] carrying amount",null,"[Gross] carrying amount",null,"[Gross] carrying amount"]
[null,null,null,"Mn DKK","Of which environmentally sustainable (CCM)","Mn DKK","Of which environmentally sustainable (CCM)","Mn DKK","Of which environmentally sustainable (CCM)","Mn DKK","Of which environmentally sustainable (CCM)","Mn DKK","Of which environmentally sustainable (CCM)","Mn DKK","Of which environmentally sustainable (CCM)","Mn DKK","Of which environmentally sustainable (CCM)","Mn DKK","Of which environmentally sustainable (CCM)","Mn DKK","Of which environmentally sustainable (CCM)","Mn DKK","Of which environmentally sustainable (CCM)","Mn DKK","Of which environmentally sustainable (CCM)","Mn DKK","Of which environmentally sustainable (CCM)","Mn DKK","Of which environmentally sustainable (CCM)","Mn DKK","Of which environmentally sustainable (CCM)"]
[null,1,6419,1343.3518590000001,29.3850123044,null,null,1343.3518590000001,0,null,null,1343.3518590000001,0,null,null,1343.3518590000001,0,null,null,1343.3518590000001,0,null,null,1343.3518590000001,0,null,null,1343.3518590000001,0]
[null,2]
[null,3]
[null,4]
[null,"…."]

{"sheet":"2. GAR - Sector inform CAPEX","index":7,"n_rows":14,"n_cols":31,"rows_kept":14,"cut":false,"hidden":false,"merged":[[7,27,7,28],[6,23,6,24],[7,19,7,20],[7,21,7,22],[7,23,7,24],[7,25,7,26],[6,13,6,14],[7,29,7,30],[6,27,6,28],[6,29,6,30],[7,3,7,4],[7,5,7,6],[7,7,7,8],[7,9,7,10],[7,11,7,12],[7,13,7,14],[7,15,7,16],[7,17,7,18],[6,15,6,16],[6,17,6,18],[6,19,6,20],[6,21,6,22],[1,1,1,3],[4,1,8,2],[4,3,4,30],[5,3,5,6],[5,7,5,10],[5,11,5,14],[5,15,5,18],[5,19,5,22],[5,23,5,26],[5,27,5,30],[6,25,6,26],[6,3,6,4],[6,5,6,6],[6,7,6,8],[6,9,6,10],[6,11,6,12]]}
[]
[null,"2. GAR sector information - CAPEX"]
[]
[]
[null,"Breakdown by sector - NACE 4 digits level (code and label)"]
[null,null,null,"Climate Change Mitigation (CCM)",null,null,null,"Climate Change Adaptation (CCA)",null,null,null,"Water and marine resources (WTR)",null,null,null,"Circular economy (CE)",null,null,null,"Pollution (PPC)",null,null,null,"Biodiversity and Ecosystems (BIO)",null,null,null,"TOTAL (CCM + CCA + WTR + CE + PPC + BIO)"]
[null,null,null,"Non-Financial corporates (Subject to NFRD)",null,"SMEs and other NFC not subject to NFRD",null,"Non-Financial corporates (Subject to NFRD)",null,"SMEs and other NFC not subject to NFRD",null,"Non-Financial corporates (Subject to NFRD)",null,"SMEs and other NFC not subject to NFRD",null,"Non-Financial corporates (Subject to NFRD)",null,"SMEs and other NFC not subject to NFRD",null,"Non-Financial corporates (Subject to NFRD)",null,"SMEs and other NFC not subject to NFRD",null,"Non-Financial corporates (Subject to NFRD)",null,"SMEs and other NFC not subject to NFRD",null,"Non-Financial corporates (Subject to NFRD)",null,"SMEs and other NFC not subject to NFRD"]
[null,null,null,"[Gross] carrying amount",null,"[Gross] carrying amount",null,"[Gross] carrying amount",null,"[Gross] carrying amount",null,"[Gross] carrying amount",null,"[Gross] carrying amount",null,"[Gross] carrying amount",null,"[Gross] carrying amount",null,"[Gross] carrying amount",null,"[Gross] carrying amount",null,"[Gross] carrying amount",null,"[Gross] carrying amount",null,"[Gross] carrying amount",null,"[Gross] carrying amount"]
[null,null,null,"Mn DKK","Of which environmentally sustainable (CCM)","Mn DKK","Of which environmentally sustainable (CCM)","Mn DKK","Of which environmentally sustainable (CCM)","Mn DKK","Of which environmentally sustainable (CCM)","Mn DKK","Of which environmentally sustainable (CCM)","Mn DKK","Of which environmentally sustainable (CCM)","Mn DKK","Of which environmentally sustainable (CCM)","Mn DKK","Of which environmentally sustainable (CCM)","Mn DKK","Of which environmentally sustainable (CCM)","Mn DKK","Of which environmentally sustainable (CCM)","Mn DKK","Of which environmentally sustainable (CCM)","Mn DKK","Of which environmentally sustainable (CCM)","Mn DKK","Of which environmentally sustainable (CCM)","Mn DKK","Of which environmentally sustainable (CCM)"]
[null,1,6419,1343.3518590000001,30.445498183599998,null,null,1343.3518590000001,0,null,null,1343.3518590000001,0,null,null,1343.3518590000001,0,null,null,1343.3518590000001,0,null,null,1343.3518590000001,0,null,null,1343.3518590000001,0]
[null,2]
[null,3]
[null,4]
[null,"…."]

{"sheet":"3. GAR KPIs Stock Turnover","index":8,"n_rows":88,"n_cols":34,"rows_kept":88,"cut":false,"hidden":false,"merged":[[6,20,6,23],[6,24,6,27],[53,17,53,19],[6,33,8,33],[52,33,54,33],[53,25,53,27],[51,24,51,27],[51,28,51,32],[6,28,6,32],[52,24,52,27],[52,28,52,32],[7,29,7,32],[7,17,7,19],[7,21,7,23],[53,29,53,32],[7,9,7,11],[53,13,53,15],[52,20,52,23],[7,25,7,27],[53,21,53,23],[50,1,54,2],[50,3,50,33],[51,3,51,7],[51,8,51,11],[51,12,51,15],[51,16,51,19],[51,20,51,23],[52,3,52,7],[52,8,52,11],[52,12,52,15],[52,16,52,19],[53,4,53,7],[53,9,53,11],[1,1,1,3],[4,1,8,2],[4,3,4,33],[5,3,5,7],[5,8,5,11],[5,12,5,15],[5,16,5,19],[5,20,5,23],[5,24,5,27],[5,28,5,32],[6,3,6,7],[6,8,6,11],[6,12,6,15],[6,16,6,19],[7,4,7,7],[7,13,7,15]]}
[]
[null,"3. GAR KPI stock - Turnover"]
[]
[]
[null,"% (compared to total covered assets in the denominator)",null,"31.12.2024"]
[null,null,null,"Climate Change Mitigation (CCM)",null,null,null,null,"Climate Change Adaptation (CCA)",null,null,null,"Water and marine resources (WTR)",null,null,null,"Circular economy (CE)",null,null,null,"Pollution (PPC)",null,null,null,"Biodiversity and Ecosystems (BIO)",null,null,null,"TOTAL (CCM + CCA + WTR + CE + PPC + BIO)"]
[null,null,null,"Proportion of total covered assets funding taxonomy relevant sectors (Taxonomy-eligible)",null,null,null,null,"Proportion of total covered assets funding taxonomy relevant sectors (Taxonomy-eligible)",null,null,null,"Proportion of total covered assets funding taxonomy relevant sectors (Taxonomy-eligible)",null,null,null,"Proportion of total covered assets funding taxonomy relevant sectors (Taxonomy-eligible)",null,null,null,"Proportion of total covered assets funding taxonomy relevant sectors (Taxonomy-eligible)",null,null,null,"Proportion of total covered assets funding taxonomy relevant sectors (Taxonomy-eligible)",null,null,null,"Proportion of total covered assets funding taxonomy relevant sectors (Taxonomy-eligible)",null,null,null,null,"Proportion of total assets covered"]
[null,null,null,null,"Proportion of total covered assets funding taxonomy relevant sectors (Taxonomy-aligned)",null,null,null,null,"Proportion of total covered assets funding taxonomy relevant sectors (Taxonomy-aligned)",null,null,null,"Proportion of total covered assets funding taxonomy relevant sectors (Taxonomy-aligned)",null,null,null,"Proportion of total covered assets funding taxonomy relevant sectors (Taxonomy-aligned)",null,null,null,"Proportion of total covered assets funding taxonomy relevant sectors (Taxonomy-aligned)",null,null,null,"Proportion of total covered assets funding taxonomy relevant sectors (Taxonomy-aligned)",null,null,null,"Proportion of total covered assets funding taxonomy relevant sectors (Taxonomy-aligned)"]
[null,null,null,null,null,"Of which Use of Proceeds","Of which transitional","Of which enabling",null,null,"Of which Use of Proceeds","Of which enabling",null,null,"Of which Use of Proceeds","Of which enabling",null,null,"Of which Use of Proceeds","Of which enabling",null,null,"Of which Use of Proceeds","Of which enabling",null,null,"Of which Use of Proceeds","Of which enabling",null,null,"Of which Use of Proceeds","Of which transitional","Of which enabling"]
[null,null,"GAR - Covered assets in both numerator and denominator"]
[null,1,"Loans and advances, debt securities and equity instruments not HfT eligible for GAR calculation",0.33972777652470915,2.5010185258908243E-2,0,0,0,0,0,0,0,0,0,0,0,0,0,0,0,0,0,0,0,0,0,0,0,0.33972777652470915,2.5010185258908243E-2,0,0,0,0.52849598031436451]
[null,2,"Financial undertakings ",9.0971594671599862E-2,8.228338060444455E-3,0,0,0,0,0,0,0,0,0,0,0,0,0,0,0,0,0,0,0,0,0,0,0,9.0971594671599862E-2,8.228338060444455E-3,0,0,0,0.26629874324985336]
[null,3,"Credit institutions",0.19844991525324063,1.7949701735634083E-2,0,0,0,0,0,0,0,0,0,0,0,0,0,0,0,0,0,0,0,0,0,0,0,0.19844991525324063,1.7949701735634083E-2,0,0,0,0.12207423370056847]
[null,4,"Loans and advances",0.27499633939197154,2.1874397320054625E-2,0,0,0,0,0,0,0,0,0,0,0,0,0,0,0,0,0,0,0,0,0,0,0,0.27499633939197154,2.1874397320054625E-2,0,0,0,1.0669832179725532E-2]
[null,5,"Debt securities, including UoP",0.20307116713520504,1.8672875539150625E-2,0,0,0,0,0,0,0,0,0,0,0,0,0,0,0,0,0,0,0,0,0,0,0,0.20307116713520504,1.8672875539150625E-2,0,0,0,0.10484726532819424]
[null,6,"Equity instruments",0,0,null,0,0,0,0,null,0,0,0,null,0,0,0,null,0,0,0,null,0,0,0,null,0,0,0,null,0,0,6.5571361926486911E-3]
[null,7,"Other financial corporations",0,0,0,0,0,0,0,0,0,0,0,0,0,0,0,0,0,0,0,0,0,0,0,0,0,0,0,0,0,0,0.14422450954928495]
[null,8,"of which investment firms",0,0,0,0,0,0,0,0,0,0,0,0,0,0,0,0,0,0,0,0,0,0,0,0,0,0,0,0,0,0,0]
[null,9,"Loans and advances",0,0,0,0,0,0,0,0,0,0,0,0,0,0,0,0,0,0,0,0,0,0,0,0,0,0,0,0,0,0,0.13778008962233115]
[null,10,"Debt securities, including UoP",0,0,0,0,0,0,0,0,0,0,0,0,0,0,0,0,0,0,0,0,0,0,0,0,0,0,0,0,0,0,0]
[null,11,"Equity instruments",0,0,null,0,0,0,0,null,0,0,0,null,0,0,0,null,0,0,0,null,0,0,0,null,0,0,0,null,0,0,6.4444199269538026E-3]
[null,12,"of which  management companies",0,0,0,0,0,0,0,0,0,0,0,0,0,0,0,0,0,0,0,0,0,0,0,0,0,0,0,0,0,0,0]
[null,13,"Loans and advances",0,0,0,0,0,0,0,0,0,0,0,0,0,0,0,0,0,0,0,0,0,0,0,0,0,0,0,0,0,0,0]
[null,14,"Debt securities, including UoP",0,0,0,0,0,0,0,0,0,0,0,0,0,0,0,0,0,0,0,0,0,0,0,0,0,0,0,0,0,0,0]
[null,15,"Equity instruments",0,0,0,0,0,0,0,0,0,0,0,0,0,0,0,0,0,0,0,0,0,0,0,0,0,0,0,0,0,0,0]
[null,16,"of which insurance undertakings",0,0,0,0,0,0,0,0,0,0,0,0,0,0,0,0,0,0,0,0,0,0,0,0,0,0,0,0,0,0,0]
[null,17,"Loans and advances",0,0,0,0,0,0,0,0,0,0,0,0,0,0,0,0,0,0,0,0,0,0,0,0,0,0,0,0,0,0,0]
[null,18,"Debt securities, including UoP",0,0,0,0,0,0,0,0,0,0,0,0,0,0,0,0,0,0,0,0,0,0,0,0,0,0,0,0,0,0,0]
[null,19,"Equity instruments",0,0,null,0,0,0,0,null,0,0,0,null,0,0,0,null,0,0,0,null,0,0,0,null,0,0,0,null,0,0,0]
[null,20,"Non-financial undertakings",0,0,0,0,0,0,0,0,0,0,0,0,0,0,0,0,0,0,0,0,0,0,0,0,0,0,0,0,0,0,8.8552502036993944E-3]
[null,21,"Loans and advances",0,0,0,0,0,0,0,0,0,0,0,0,0,0,0,0,0,0,0,0,0,0,0,0,0,0,0,0,0,0,8.8381374162254112E-3]
[null,22,"Debt securities, including UoP",0,0,0,0,0,0,0,0,0,0,0,0,0,0,0,0,0,0,0,0,0,0,0,0,0,0,0,0,0,0,0]
[null,23,"Equity instruments",0,0,null,0,0,0,0,null,0,0,0,null,0,0,0,null,0,0,0,null,0,0,0,null,0,0,0,null,0,0,1.7112787473984066E-5]
[null,24,"Households",0.61308093808902309,4.3524511780897127E-2,0,0,0,0,0,0,0,null,null,null,null,0,0,0,0,null,null,null,null,null,null,null,null,0.61308093808902309,4.3524511780897127E-2,0,0,0,0.25334198686081177]
[null,25,"of which loans collateralised by residential immovable property",1,7.9167607769885365E-2,0,0,0,0,0,0,0,null,null,null,null,0,0,0,0,null,null,null,null,null,null,null,null,1,7.9167607769885365E-2,0,0,0,0.13928153953786257]
[null,26,"of which building renovation loans",0,0,0,0,0,0,0,0,0,null,null,null,null,0,0,0,0,null,null,null,null,null,null,null,null,0,0,0,0,0,0]
[null,27,"of which motor vehicle loans",0.81311315637544046,0,0,0,0]
[null,28,"Local governments financing",0,0,0,0,0,0,0,0,0,0,0,0,0,0,0,0,0,0,0,0,0,0,0,0,0,0,0,0,0,0,0]
[null,29,"Housing financing",0,0,0,0,0,0,0,0,0,0,0,0,0,0,0,0,0,0,0,0,0,0,0,0,0,0,0,0,0,0,0]
[null,30,"Other local government financing",0,0,0,0,0,0,0,0,0,0,0,0,0,0,0,0,0,0,0,0,0,0,0,0,0,0,0,0,0,0,0]
[null,31,"Collateral obtained by taking possession: residential and commercial immovable properties ",0,0,0,0,0,0,0,0,0,0,0,0,0,0,0,0,0,0,0,0,0,0,0,0,0,0,0,0,0,0,0]
[null,32,"Total GAR assets",0.17954476429444552,1.321778237625058E-2,0,0,0,0,0,0,0,0,0,0,0,0,0,0,0,0,0,0,0,0,0,0,0,0.17954476429444552,1.321778237625058E-2,0,0,0,0.52849598031436451]
[]
[]
[]
[]
[]
[]
[]
[]
[null,"% (compared to total covered assets in the denominator)",null,"31.12.2023"]
[null,null,null,"Climate Change Mitigation (CCM)",null,null,null,null,"Climate Change Adaptation (CCA)",null,null,null,"Water and marine resources (WTR)",null,null,null,"Circular economy (CE)",null,null,null,"Pollution (PPC)",null,null,null,"Biodiversity and Ecosystems (BIO)",null,null,null,"TOTAL (CCM + CCA + WTR + CE + PPC + BIO)"]
[null,null,null,"Proportion of total covered assets funding taxonomy relevant sectors (Taxonomy-eligible)",null,null,null,null,"Proportion of total covered assets funding taxonomy relevant sectors (Taxonomy-eligible)",null,null,null,"Proportion of total covered assets funding taxonomy relevant sectors (Taxonomy-eligible)",null,null,null,"Proportion of total covered assets funding taxonomy relevant sectors (Taxonomy-eligible)",null,null,null,"Proportion of total covered assets funding taxonomy relevant sectors (Taxonomy-eligible)",null,null,null,"Proportion of total covered assets funding taxonomy relevant sectors (Taxonomy-eligible)",null,null,null,"Proportion of total covered assets funding taxonomy relevant sectors (Taxonomy-eligible)",null,null,null,null,"Proportion of total assets covered"]
[null,null,null,null,"Proportion of total covered assets funding taxonomy relevant sectors (Taxonomy-aligned)",null,null,null,null,"Proportion of total covered assets funding taxonomy relevant sectors (Taxonomy-aligned)",null,null,null,"Proportion of total covered assets funding taxonomy relevant sectors (Taxonomy-aligned)",null,null,null,"Proportion of total covered assets funding taxonomy relevant sectors (Taxonomy-aligned)",null,null,null,"Proportion of total covered assets funding taxonomy relevant sectors (Taxonomy-aligned)",null,null,null,"Proportion of total covered assets funding taxonomy relevant sectors (Taxonomy-aligned)",null,null,null,"Proportion of total covered assets funding taxonomy relevant sectors (Taxonomy-aligned)"]
[null,null,null,null,null,"Of which Use of Proceeds","Of which transitional","Of which enabling",null,null,"Of which Use of Proceeds","Of which enabling",null,null,"Of which Use of Proceeds","Of which enabling",null,null,"Of which Use of Proceeds","Of which enabling",null,null,"Of which Use of Proceeds","Of which enabling",null,null,"Of which Use of Proceeds","Of which enabling",null,null,"Of which Use of Proceeds","Of which transitional","Of which enabling"]
[null,null,"GAR - Covered assets in both numerator and denominator"]
[null,1,"Loans and advances, debt securities and equity instruments not HfT eligible for GAR calculation",0.28701372371222766,6.3901836949653412E-3,0,0,0,0,0,0,0,0,0,0,0,0,0,0,0,0,0,0,0,0,0,0,0,0.28701372371222766,6.3901836949653412E-3,0,0,0,0.53107427090887327]
[null,2,"Financial undertakings ",1.7473146266610565E-2,0,0,0,0,0,0,0,0,0,0,0,0,0,0,0,0,0,0,0,0,0,0,0,0,1.7473146266610565E-2,0,0,0,0,0.26108471016319323]
[null,3,"Credit institutions",3.7228734078025377E-2,0,0,0,0,0,0,0,0,0,0,0,0,0,0,0,0,0,0,0,0,0,0,0,0,3.7228734078025377E-2,0,0,0,0,0.12253898612550056]
[null,4,"Loans and advances",0.25189376458522805,0,0,0,0,0,0,0,0,0,0,0,0,0,0,0,0,0,0,0,0,0,0,0,0,0.25189376458522805,0,0,0,0,1.8110695737819909E-2]
[null,5,"Debt securities, including UoP",0,0,0,0,0,0,0,0,0,0,0,0,0,0,0,0,0,0,0,0,0,0,0,0,0,0,0,0,0,0,9.6831673186793837E-2]
[null,6,"Equity instruments",0,0,null,0,0,0,0,null,0,0,0,null,0,0,0,null,0,0,0,null,0,0,0,null,0,0,0,null,0,0,7.5966172008868037E-3]
[null,7,"Other financial corporations",0,0,0,0,0,0,0,0,0,0,0,0,0,0,0,0,0,0,0,0,0,0,0,0,0,0,0,0,0,0,0.13854572403769269]
[null,8,"of which investment firms",0,0,0,0,0,0,0,0,0,0,0,0,0,0,0,0,0,0,0,0,0,0,0,0,0,0,0,0,0,0,0]
[null,9,"Loans and advances",0,0,0,0,0,0,0,0,0,0,0,0,0,0,0,0,0,0,0,0,0,0,0,0,0,0,0,0,0,0,0.13397589375393451]
[null,10,"Debt securities, including UoP",0,0,0,0,0,0,0,0,0,0,0,0,0,0,0,0,0,0,0,0,0,0,0,0,0,0,0,0,0,0,0]
[null,11,"Equity instruments",0,0,null,0,0,0,0,null,0,0,0,null,0,0,0,null,0,0,0,null,0,0,0,null,0,0,0,null,0,0,4.5698302837581598E-3]
[null,12,"of which  management companies",0,0,0,0,0,0,0,0,0,0,0,0,0,0,0,0,0,0,0,0,0,0,0,0,0,0,0,0,0,0,0]
[null,13,"Loans and advances",0,0,0,0,0,0,0,0,0,0,0,0,0,0,0,0,0,0,0,0,0,0,0,0,0,0,0,0,0,0,0]
[null,14,"Debt securities, including UoP",0,0,0,0,0,0,0,0,0,0,0,0,0,0,0,0,0,0,0,0,0,0,0,0,0,0,0,0,0,0,0]
[null,15,"Equity instruments",0,0,0,0,0,0,0,0,0,0,0,0,0,0,0,0,0,0,0,0,0,0,0,0,0,0,0,0,0,0,0]
[null,16,"of which insurance undertakings",0,0,0,0,0,0,0,0,0,0,0,0,0,0,0,0,0,0,0,0,0,0,0,0,0,0,0,0,0,0,0]
[null,17,"Loans and advances",0,0,0,0,0,0,0,0,0,0,0,0,0,0,0,0,0,0,0,0,0,0,0,0,0,0,0,0,0,0,0]
[null,18,"Debt securities, including UoP",0,0,0,0,0,0,0,0,0,0,0,0,0,0,0,0,0,0,0,0,0,0,0,0,0,0,0,0,0,0,0]
[null,19,"Equity instruments",0,0,null,0,0,0,0,null,0,0,0,null,0,0,0,null,0,0,0,null,0,0,0,null,0,0,0,null,0,0,0]
[null,20,"Non-financial undertakings",0,0,0,0,0,0,0,0,0,0,0,0,0,0,0,0,0,0,0,0,0,0,0,0,0,0,0,0,0,0,1.278034735613531E-2]
[null,21,"Loans and advances",0,0,0,0,0,0,0,0,0,0,0,0,0,0,0,0,0,0,0,0,0,0,0,0,0,0,0,0,0,0,1.0469418830566769E-2]
[null,22,"Debt securities, including UoP",0,0,0,0,0,0,0,0,0,0,0,0,0,0,0,0,0,0,0,0,0,0,0,0,0,0,0,0,0,0,0]
[null,23,"Equity instruments",0,0,null,0,0,0,0,null,0,0,0,null,0,0,0,null,0,0,0,null,0,0,0,null,0,0,0,null,0,0,2.3109285255685425E-3]
[null,24,"Households",0.57487689023299005,1.3194170232299452E-2,0,0,0,0,0,0,0,null,null,null,null,0,0,0,0,null,null,null,null,null,null,null,null,0.57487689023299005,1.3194170232299452E-2,0,0,0,0.25720921338954467]
[null,25,"of which loans collateralised by residential immovable property",1,2.4986245502242991E-2,0,0,0,0,0,0,0,null,null,null,null,0,0,0,0,null,null,null,null,null,null,null,null,1,2.4986245502242991E-2,0,0,0,0.13582121197331717]
[null,26,"of which building renovation loans",0,0,0,0,0,0,0,0,0,null,null,null,null,0,0,0,0,null,null,null,null,null,null,null,null,0,0,0,0,0,0]
[null,27,"of which motor vehicle loans",0.63412109854428567,0,0,0,0]
[null,28,"Local governments financing",0,0,0,0,0,0,0,0,0,0,0,0,0,0,0,0,0,0,0,0,0,0,0,0,0,0,0,0,0,0,0]
[null,29,"Housing financing",0,0,0,0,0,0,0,0,0,0,0,0,0,0,0,0,0,0,0,0,0,0,0,0,0,0,0,0,0,0,0]
[null,30,"Other local government financing",0,0,0,0,0,0,0,0,0,0,0,0,0,0,0,0,0,0,0,0,0,0,0,0,0,0,0,0,0,0,0]
[null,31,"Collateral obtained by taking possession: residential and commercial immovable properties ",0,0,0,0,0,0,0,0,0,0,0,0,0,0,0,0,0,0,0,0,0,0,0,0,0,0,0,0,0,0,0]
[null,32,"Total GAR assets",0.15242560406131209,3.3936621467774881E-3,0,0,0,0,0,0,0,0,0,0,0,0,0,0,0,0,0,0,0,0,0,0,0,0.15242560406131209,3.3936621467774881E-3,0,0,0,0.53107427090887316]

{"sheet":"3. GAR KPIs Stock CAPEX","index":9,"n_rows":88,"n_cols":34,"rows_kept":88,"cut":false,"hidden":false,"merged":[[53,25,53,27],[53,29,53,32],[52,8,52,11],[52,12,52,15],[52,16,52,19],[52,20,52,23],[52,24,52,27],[52,28,52,32],[50,1,54,2],[50,3,50,33],[51,3,51,7],[51,8,51,11],[51,12,51,15],[51,16,51,19],[51,20,51,23],[51,24,51,27],[51,28,51,32],[52,3,52,7],[52,33,54,33],[53,4,53,7],[53,9,53,11],[53,13,53,15],[53,17,53,19],[53,21,53,23],[7,21,7,23],[7,25,7,27],[7,29,7,32],[6,3,6,7],[6,8,6,11],[6,12,6,15],[6,16,6,19],[6,20,6,23],[6,24,6,27],[1,1,1,3],[4,1,8,2],[4,3,4,33],[5,3,5,7],[5,8,5,11],[5,12,5,15],[5,16,5,19],[5,20,5,23],[5,24,5,27],[5,28,5,32],[6,28,6,32],[6,33,8,33],[7,4,7,7],[7,9,7,11],[7,13,7,15],[7,17,7,19]]}
[]
[null,"3. GAR KPI stock - CAPEX"]
[]
[]
[null,"% (compared to total covered assets in the denominator)",null,"31.12.2024"]
[null,null,null,"Climate Change Mitigation (CCM)",null,null,null,null,"Climate Change Adaptation (CCA)",null,null,null,"Water and marine resources (WTR)",null,null,null,"Circular economy (CE)",null,null,null,"Pollution (PPC)",null,null,null,"Biodiversity and Ecosystems (BIO)",null,null,null,"TOTAL (CCM + CCA + WTR + CE + PPC + BIO)"]
[null,null,null,"Proportion of total covered assets funding taxonomy relevant sectors (Taxonomy-eligible)",null,null,null,null,"Proportion of total covered assets funding taxonomy relevant sectors (Taxonomy-eligible)",null,null,null,"Proportion of total covered assets funding taxonomy relevant sectors (Taxonomy-eligible)",null,null,null,"Proportion of total covered assets funding taxonomy relevant sectors (Taxonomy-eligible)",null,null,null,"Proportion of total covered assets funding taxonomy relevant sectors (Taxonomy-eligible)",null,null,null,"Proportion of total covered assets funding taxonomy relevant sectors (Taxonomy-eligible)",null,null,null,"Proportion of total covered assets funding taxonomy relevant sectors (Taxonomy-eligible)",null,null,null,null,"Proportion of total assets covered"]
[null,null,null,null,"Proportion of total covered assets funding taxonomy relevant sectors (Taxonomy-aligned)",null,null,null,null,"Proportion of total covered assets funding taxonomy relevant sectors (Taxonomy-aligned)",null,null,null,"Proportion of total covered assets funding taxonomy relevant sectors (Taxonomy-aligned)",null,null,null,"Proportion of total covered assets funding taxonomy relevant sectors (Taxonomy-aligned)",null,null,null,"Proportion of total covered assets funding taxonomy relevant sectors (Taxonomy-aligned)",null,null,null,"Proportion of total covered assets funding taxonomy relevant sectors (Taxonomy-aligned)",null,null,null,"Proportion of total covered assets funding taxonomy relevant sectors (Taxonomy-aligned)"]
[null,null,null,null,null,"Of which Use of Proceeds","Of which transitional","Of which enabling",null,null,"Of which Use of Proceeds","Of which enabling",null,null,"Of which Use of Proceeds","Of which enabling",null,null,"Of which Use of Proceeds","Of which enabling",null,null,"Of which Use of Proceeds","Of which enabling",null,null,"Of which Use of Proceeds","Of which enabling",null,null,"Of which Use of Proceeds","Of which transitional","Of which enabling"]
[null,null,"GAR - Covered assets in both numerator and denominator"]
[null,1,"Loans and advances, debt securities and equity instruments not HfT eligible for GAR calculation",0.29932215378310273,2.1321648554135562E-2,0,0,0,0,0,0,0,0,0,0,0,0,0,0,0,0,0,0,0,0,0,0,0,0.29932215378310273,2.1321648554135562E-2,0,0,0,0.52849598031436451]
[null,2,"Financial undertakings ",1.0782672484302128E-2,9.0807511843966047E-4,0,0,0,0,0,0,0,0,0,0,0,0,0,0,0,0,0,0,0,0,0,0,0,1.0782672484302128E-2,9.0807511843966047E-4,0,0,0,0.26629874324985336]
[null,3,"Credit institutions",2.3521852600669323E-2,1.9809197689505324E-3,0,0,0,0,0,0,0,0,0,0,0,0,0,0,0,0,0,0,0,0,0,0,0,2.3521852600669323E-2,1.9809197689505324E-3,0,0,0,0.12207423370056847]
[null,4,"Loans and advances",0.2691150229054769,2.2663830015662335E-2,0,0,0,0,0,0,0,0,0,0,0,0,0,0,0,0,0,0,0,0,0,0,0,0.2691150229054769,2.2663830015662335E-2,0,0,0,1.0669832179725532E-2]
[null,5,"Debt securities, including UoP",0,0,0,0,0,0,0,0,0,0,0,0,0,0,0,0,0,0,0,0,0,0,0,0,0,0,0,0,0,0,0.10484726532819424]
[null,6,"Equity instruments",0,0,null,0,0,0,0,null,0,0,0,null,0,0,0,null,0,0,0,null,0,0,0,null,0,0,0,null,0,0,6.5571361926486911E-3]
[null,7,"Other financial corporations",0,0,0,0,0,0,0,0,0,0,0,0,0,0,0,0,0,0,0,0,0,0,0,0,0,0,0,0,0,0,0.14422450954928495]
[null,8,"of which investment firms",0,0,0,0,0,0,0,0,0,0,0,0,0,0,0,0,0,0,0,0,0,0,0,0,0,0,0,0,0,0,0]
[null,9,"Loans and advances",0,0,0,0,0,0,0,0,0,0,0,0,0,0,0,0,0,0,0,0,0,0,0,0,0,0,0,0,0,0,0.13778008962233115]
[null,10,"Debt securities, including UoP",0,0,0,0,0,0,0,0,0,0,0,0,0,0,0,0,0,0,0,0,0,0,0,0,0,0,0,0,0,0,0]
[null,11,"Equity instruments",0,0,null,0,0,0,0,null,0,0,0,null,0,0,0,null,0,0,0,null,0,0,0,null,0,0,0,null,0,0,6.4444199269538026E-3]
[null,12,"of which  management companies",0,0,0,0,0,0,0,0,0,0,0,0,0,0,0,0,0,0,0,0,0,0,0,0,0,0,0,0,0,0,0]
[null,13,"Loans and advances",0,0,0,0,0,0,0,0,0,0,0,0,0,0,0,0,0,0,0,0,0,0,0,0,0,0,0,0,0,0,0]
[null,14,"Debt securities, including UoP",0,0,0,0,0,0,0,0,0,0,0,0,0,0,0,0,0,0,0,0,0,0,0,0,0,0,0,0,0,0,0]
[null,15,"Equity instruments",0,0,0,0,0,0,0,0,0,0,0,0,0,0,0,0,0,0,0,0,0,0,0,0,0,0,0,0,0,0,0]
[null,16,"of which insurance undertakings",0,0,0,0,0,0,0,0,0,0,0,0,0,0,0,0,0,0,0,0,0,0,0,0,0,0,0,0,0,0,0]
[null,17,"Loans and advances",0,0,0,0,0,0,0,0,0,0,0,0,0,0,0,0,0,0,0,0,0,0,0,0,0,0,0,0,0,0,0]
[null,18,"Debt securities, including UoP",0,0,0,0,0,0,0,0,0,0,0,0,0,0,0,0,0,0,0,0,0,0,0,0,0,0,0,0,0,0,0]
[null,19,"Equity instruments",0,0,null,0,0,0,0,null,0,0,0,null,0,0,0,null,0,0,0,null,0,0,0,null,0,0,0,null,0,0,0]
[null,20,"Non-financial undertakings",0,0,0,0,0,0,0,0,0,0,0,0,0,0,0,0,0,0,0,0,0,0,0,0,0,0,0,0,0,0,8.8552502036993944E-3]
[null,21,"Loans and advances",0,0,0,0,0,0,0,0,0,0,0,0,0,0,0,0,0,0,0,0,0,0,0,0,0,0,0,0,0,0,8.8381374162254112E-3]
[null,22,"Debt securities, including UoP",0,0,0,0,0,0,0,0,0,0,0,0,0,0,0,0,0,0,0,0,0,0,0,0,0,0,0,0,0,0,0]
[null,23,"Equity instruments",0,0,null,0,0,0,0,null,0,0,0,null,0,0,0,null,0,0,0,null,0,0,0,null,0,0,0,null,0,0,1.7112787473984066E-5]
[null,24,"Households",0.61308093808902309,4.3524511780897127E-2,0,0,0,0,0,0,0,null,null,null,null,0,0,0,0,null,null,null,null,null,null,null,null,0.61308093808902309,4.3524511780897127E-2,0,0,0,0.25334198686081177]
[null,25,"of which loans collateralised by residential immovable property",1,7.9167607769885365E-2,0,0,0,0,0,0,0,null,null,null,null,0,0,0,0,null,null,null,null,null,null,null,null,1,7.9167607769885365E-2,0,0,0,0.13928153953786257]
[null,26,"of which building renovation loans",0,0,0,0,0,0,0,0,0,null,null,null,null,0,0,0,0,null,null,null,null,null,null,null,null,0,0,0,0,0,0]
[null,27,"of which motor vehicle loans",0.81311315637544046,0,0,0,0]
[null,28,"Local governments financing",0,0,0,0,0,0,0,0,0,0,0,0,0,0,0,0,0,0,0,0,0,0,0,0,0,0,0,0,0,0,0]
[null,29,"Housing financing",0,0,0,0,0,0,0,0,0,0,0,0,0,0,0,0,0,0,0,0,0,0,0,0,0,0,0,0,0,0,0]
[null,30,"Other local government financing",0,0,0,0,0,0,0,0,0,0,0,0,0,0,0,0,0,0,0,0,0,0,0,0,0,0,0,0,0,0,0]
[null,31,"Collateral obtained by taking possession: residential and commercial immovable properties ",0,0,0,0,0,0,0,0,0,0,0,0,0,0,0,0,0,0,0,0,0,0,0,0,0,0,0,0,0,0,0]
[null,32,"Total GAR assets",0.15819055509340785,1.1268405554536228E-2,0,0,0,0,0,0,0,0,0,0,0,0,0,0,0,0,0,0,0,0,0,0,0,0.15819055509340785,1.1268405554536228E-2,0,0,0,0.52849598031436451]
[]
[]
[]
[]
[]
[]
[]
[]
[null,"% (compared to total covered assets in the denominator)",null,"31.12.2023"]
[null,null,null,"Climate Change Mitigation (CCM)",null,null,null,null,"Climate Change Adaptation (CCA)",null,null,null,"Water and marine resources (WTR)",null,null,null,"Circular economy (CE)",null,null,null,"Pollution (PPC)",null,null,null,"Biodiversity and Ecosystems (BIO)",null,null,null,"TOTAL (CCM + CCA + WTR + CE + PPC + BIO)"]
[null,null,null,"Proportion of total covered assets funding taxonomy relevant sectors (Taxonomy-eligible)",null,null,null,null,"Proportion of total covered assets funding taxonomy relevant sectors (Taxonomy-eligible)",null,null,null,"Proportion of total covered assets funding taxonomy relevant sectors (Taxonomy-eligible)",null,null,null,"Proportion of total covered assets funding taxonomy relevant sectors (Taxonomy-eligible)",null,null,null,"Proportion of total covered assets funding taxonomy relevant sectors (Taxonomy-eligible)",null,null,null,"Proportion of total covered assets funding taxonomy relevant sectors (Taxonomy-eligible)",null,null,null,"Proportion of total covered assets funding taxonomy relevant sectors (Taxonomy-eligible)",null,null,null,null,"Proportion of total assets covered"]
[null,null,null,null,"Proportion of total covered assets funding taxonomy relevant sectors (Taxonomy-aligned)",null,null,null,null,"Proportion of total covered assets funding taxonomy relevant sectors (Taxonomy-aligned)",null,null,null,"Proportion of total covered assets funding taxonomy relevant sectors (Taxonomy-aligned)",null,null,null,"Proportion of total covered assets funding taxonomy relevant sectors (Taxonomy-aligned)",null,null,null,"Proportion of total covered assets funding taxonomy relevant sectors (Taxonomy-aligned)",null,null,null,"Proportion of total covered assets funding taxonomy relevant sectors (Taxonomy-aligned)",null,null,null,"Proportion of total covered assets funding taxonomy relevant sectors (Taxonomy-aligned)"]
[null,null,null,null,null,"Of which Use of Proceeds","Of which transitional","Of which enabling",null,null,"Of which Use of Proceeds","Of which enabling",null,null,"Of which Use of Proceeds","Of which enabling",null,null,"Of which Use of Proceeds","Of which enabling",null,null,"Of which Use of Proceeds","Of which enabling",null,null,"Of which Use of Proceeds","Of which enabling",null,null,"Of which Use of Proceeds","Of which transitional","Of which enabling"]
[null,null,"GAR - Covered assets in both numerator and denominator"]
[null,1,"Loans and advances, debt securities and equity instruments not HfT eligible for GAR calculation",0.28704208288350397,6.3901836949653412E-3,0,0,0,0,0,0,0,0,0,0,0,0,0,0,0,0,0,0,0,0,0,0,0,0.28704208288350397,6.3901836949653412E-3,0,0,0,0.53107427090887327]
[null,2,"Financial undertakings ",1.7473146266610565E-2,0,0,0,0,0,0,0,0,0,0,0,0,0,0,0,0,0,0,0,0,0,0,0,0,1.7473146266610565E-2,0,0,0,0,0.26108471016319323]
[null,3,"Credit institutions",3.7228734078025377E-2,0,0,0,0,0,0,0,0,0,0,0,0,0,0,0,0,0,0,0,0,0,0,0,0,3.7228734078025377E-2,0,0,0,0,0.12253898612550056]
[null,4,"Loans and advances",0.25189376458522805,0,0,0,0,0,0,0,0,0,0,0,0,0,0,0,0,0,0,0,0,0,0,0,0,0.25189376458522805,0,0,0,0,1.8110695737819909E-2]
[null,5,"Debt securities, including UoP",0,0,0,0,0,0,0,0,0,0,0,0,0,0,0,0,0,0,0,0,0,0,0,0,0,0,0,0,0,0,9.6831673186793837E-2]
[null,6,"Equity instruments",0,0,null,0,0,0,0,null,0,0,0,null,0,0,0,null,0,0,0,null,0,0,0,null,0,0,0,null,0,0,7.5966172008868037E-3]
[null,7,"Other financial corporations",0,0,0,0,0,0,0,0,0,0,0,0,0,0,0,0,0,0,0,0,0,0,0,0,0,0,0,0,0,0,0.13854572403769269]
[null,8,"of which investment firms",0,0,0,0,0,0,0,0,0,0,0,0,0,0,0,0,0,0,0,0,0,0,0,0,0,0,0,0,0,0,0]
[null,9,"Loans and advances",0,0,0,0,0,0,0,0,0,0,0,0,0,0,0,0,0,0,0,0,0,0,0,0,0,0,0,0,0,0,0.13397589375393451]
[null,10,"Debt securities, including UoP",0,0,0,0,0,0,0,0,0,0,0,0,0,0,0,0,0,0,0,0,0,0,0,0,0,0,0,0,0,0,0]
[null,11,"Equity instruments",0,0,null,0,0,0,0,null,0,0,0,null,0,0,0,null,0,0,0,null,0,0,0,null,0,0,0,null,0,0,4.5698302837581598E-3]
[null,12,"of which  management companies",0,0,0,0,0,0,0,0,0,0,0,0,0,0,0,0,0,0,0,0,0,0,0,0,0,0,0,0,0,0,0]
[null,13,"Loans and advances",0,0,0,0,0,0,0,0,0,0,0,0,0,0,0,0,0,0,0,0,0,0,0,0,0,0,0,0,0,0,0]
[null,14,"Debt securities, including UoP",0,0,0,0,0,0,0,0,0,0,0,0,0,0,0,0,0,0,0,0,0,0,0,0,0,0,0,0,0,0,0]
[null,15,"Equity instruments",0,0,0,0,0,0,0,0,0,0,0,0,0,0,0,0,0,0,0,0,0,0,0,0,0,0,0,0,0,0,0]
[null,16,"of which insurance undertakings",0,0,0,0,0,0,0,0,0,0,0,0,0,0,0,0,0,0,0,0,0,0,0,0,0,0,0,0,0,0,0]
[null,17,"Loans and advances",0,0,0,0,0,0,0,0,0,0,0,0,0,0,0,0,0,0,0,0,0,0,0,0,0,0,0,0,0,0,0]
[null,18,"Debt securities, including UoP",0,0,0,0,0,0,0,0,0,0,0,0,0,0,0,0,0,0,0,0,0,0,0,0,0,0,0,0,0,0,0]
[null,19,"Equity instruments",0,0,null,0,0,0,0,null,0,0,0,null,0,0,0,null,0,0,0,null,0,0,0,null,0,0,0,null,0,0,0]
[null,20,"Non-financial undertakings",1.1784363749650917E-3,0,0,0,0,0,0,0,0,0,0,0,0,0,0,0,0,0,0,0,0,0,0,0,0,1.1784363749650917E-3,0,0,0,0,1.278034735613531E-2]
[null,21,"Loans and advances",1.4385541788801911E-3,0,0,0,0,0,0,0,0,0,0,0,0,0,0,0,0,0,0,0,0,0,0,0,0,1.4385541788801911E-3,0,0,0,0,1.0469418830566769E-2]
[null,22,"Debt securities, including UoP",0,0,0,0,0,0,0,0,0,0,0,0,0,0,0,0,0,0,0,0,0,0,0,0,0,0,0,0,0,0,0]
[null,23,"Equity instruments",0,0,null,0,0,0,0,null,0,0,0,null,0,0,0,null,0,0,0,null,0,0,0,null,0,0,0,null,0,0,2.3109285255685425E-3]
[null,24,"Households",0.57487689023299005,1.3194170232299452E-2,0,0,0,0,0,0,0,null,null,null,null,0,0,0,0,null,null,null,null,null,null,null,null,0.57487689023299005,1.3194170232299452E-2,0,0,0,0.25720921338954467]
[null,25,"of which loans collateralised by residential immovable property",1,2.4986245502242991E-2,0,0,0,0,0,0,0,null,null,null,null,0,0,0,0,null,null,null,null,null,null,null,null,1,2.4986245502242991E-2,0,0,0,0.13582121197331717]
[null,26,"of which building renovation loans",0,0,0,0,0,0,0,0,0,null,null,null,null,0,0,0,0,null,null,null,null,null,null,null,null,0,0,0,0,0,0]
[null,27,"of which motor vehicle loans",0.63412109854428567,0,0,0,0]
[null,28,"Local governments financing",0,0,0,0,0,0,0,0,0,0,0,0,0,0,0,0,0,0,0,0,0,0,0,0,0,0,0,0,0,0,0]
[null,29,"Housing financing",0,0,0,0,0,0,0,0,0,0,0,0,0,0,0,0,0,0,0,0,0,0,0,0,0,0,0,0,0,0,0]
[null,30,"Other local government financing",0,0,0,0,0,0,0,0,0,0,0,0,0,0,0,0,0,0,0,0,0,0,0,0,0,0,0,0,0,0,0]
[null,31,"Collateral obtained by taking possession: residential and commercial immovable properties ",0,0,0,0,0,0,0,0,0,0,0,0,0,0,0,0,0,0,0,0,0,0,0,0,0,0,0,0,0,0,0]
[null,32,"Total GAR assets",0.15244066488752125,3.3936621467774881E-3,0,0,0,0,0,0,0,0,0,0,0,0,0,0,0,0,0,0,0,0,0,0,0,0.15244066488752125,3.3936621467774881E-3,0,0,0,0.53107427090887327]

{"sheet":"4. GAR KPI flow - Turnover","index":10,"n_rows":88,"n_cols":34,"rows_kept":88,"cut":false,"hidden":false,"merged":[[53,25,53,27],[53,29,53,32],[52,8,52,11],[52,12,52,15],[52,16,52,19],[52,20,52,23],[52,24,52,27],[52,28,52,32],[50,1,54,2],[50,3,50,33],[51,3,51,7],[51,8,51,11],[51,12,51,15],[51,16,51,19],[51,20,51,23],[51,24,51,27],[51,28,51,32],[52,3,52,7],[52,33,54,33],[53,4,53,7],[53,9,53,11],[53,13,53,15],[53,17,53,19],[53,21,53,23],[7,21,7,23],[7,25,7,27],[7,29,7,32],[6,3,6,7],[6,8,6,11],[6,12,6,15],[6,16,6,19],[6,20,6,23],[6,24,6,27],[1,1,1,3],[4,1,8,2],[4,3,4,33],[5,3,5,7],[5,8,5,11],[5,12,5,15],[5,16,5,19],[5,20,5,23],[5,24,5,27],[5,28,5,32],[6,28,6,32],[6,33,8,33],[7,4,7,7],[7,9,7,11],[7,13,7,15],[7,17,7,19]]}
[]
[null,"4. GAR KPI flow - Turnover"]
[]
[]
[null,"% (compared to flow of total eligible assets)",null,"31.12.2024"]
[null,null,null,"Climate Change Mitigation (CCM)",null,null,null,null,"Climate Change Adaptation (CCA)",null,null,null,"Water and marine resources (WTR)",null,null,null,"Circular economy (CE)",null,null,null,"Pollution (PPC)",null,null,null,"Biodiversity and Ecosystems (BIO)",null,null,null,"TOTAL (CCM + CCA + WTR + CE + PPC + BIO)"]
[null,null,null,"Proportion of total covered assets funding taxonomy relevant sectors (Taxonomy-eligible)",null,null,null,null,"Proportion of total covered assets funding taxonomy relevant sectors (Taxonomy-eligible)",null,null,null,"Proportion of total covered assets funding taxonomy relevant sectors (Taxonomy-eligible)",null,null,null,"Proportion of total covered assets funding taxonomy relevant sectors (Taxonomy-eligible)",null,null,null,"Proportion of total covered assets funding taxonomy relevant sectors (Taxonomy-eligible)",null,null,null,"Proportion of total covered assets funding taxonomy relevant sectors (Taxonomy-eligible)",null,null,null,"Proportion of total covered assets funding taxonomy relevant sectors (Taxonomy-eligible)",null,null,null,null,"Proportion of total new assets covered"]
[null,null,null,null,"Proportion of total covered assets funding taxonomy relevant sectors (Taxonomy-aligned)",null,null,null,null,"Proportion of total covered assets funding taxonomy relevant sectors (Taxonomy-aligned)",null,null,null,"Proportion of total covered assets funding taxonomy relevant sectors (Taxonomy-aligned)",null,null,null,"Proportion of total covered assets funding taxonomy relevant sectors (Taxonomy-aligned)",null,null,null,"Proportion of total covered assets funding taxonomy relevant sectors (Taxonomy-aligned)",null,null,null,"Proportion of total covered assets funding taxonomy relevant sectors (Taxonomy-aligned)",null,null,null,"Proportion of total covered assets funding taxonomy relevant sectors (Taxonomy-aligned)"]
[null,null,null,null,null,"Of which Use of Proceeds","Of which transitional","Of which enabling",null,null,"Of which Use of Proceeds","Of which enabling",null,null,"Of which Use of Proceeds","Of which enabling",null,null,"Of which Use of Proceeds","Of which enabling",null,null,"Of which Use of Proceeds","Of which enabling",null,null,"Of which Use of Proceeds","Of which enabling",null,null,"Of which Use of Proceeds","Of which transitional","Of which enabling"]
[null,null,"GAR - Covered assets in both numerator and denominator"]
[null,1,"Loans and advances, debt securities and equity instruments not HfT eligible for GAR calculation",0,0,0,0,0,0,0,0,0,0,0,0,0,0,0,0,0,0,0,0,0,0,0,0,0,0,0,0,0,0,0]
[null,2,"Financial undertakings ",0,0,0,0,0,0,0,0,0,0,0,0,0,0,0,0,0,0,0,0,0,0,0,0,0,0,0,0,0,0,1.8189218145940048E-2]
[null,3,"Credit institutions",0,0,0,0,0,0,0,0,0,0,0,0,0,0,0,0,0,0,0,0,0,0,0,0,0,0,0,0,0,0,0]
[null,4,"Loans and advances",0,0,0,0,0,0,0,0,0,0,0,0,0,0,0,0,0,0,0,0,0,0,0,0,0,0,0,0,0,0,0]
[null,5,"Debt securities, including UoP",0,0,0,0,0,0,0,0,0,0,0,0,0,0,0,0,0,0,0,0,0,0,0,0,0,0,0,0,0,0,0]
[null,6,"Equity instruments",0,0,null,0,0,0,0,null,0,0,0,null,0,0,0,null,0,0,0,null,0,0,0,null,0,0,0,null,0,0,0]
[null,7,"Other financial corporations",0,0,0,0,0,0,0,0,0,0,0,0,0,0,0,0,0,0,0,0,0,0,0,0,0,0,0,0,0,0,0]
[null,8,"of which investment firms",0,0,0,0,0,0,0,0,0,0,0,0,0,0,0,0,0,0,0,0,0,0,0,0,0,0,0,0,0,0,0]
[null,9,"Loans and advances",0,0,0,0,0,0,0,0,0,0,0,0,0,0,0,0,0,0,0,0,0,0,0,0,0,0,0,0,0,0,1.8189218145940048E-2]
[null,10,"Debt securities, including UoP",0,0,0,0,0,0,0,0,0,0,0,0,0,0,0,0,0,0,0,0,0,0,0,0,0,0,0,0,0,0,0]
[null,11,"Equity instruments",0,0,null,0,0,0,0,null,0,0,0,null,0,0,0,null,0,0,0,null,0,0,0,null,0,0,0,null,0,0,0]
[null,12,"of which  management companies",0,0,0,0,0,0,0,0,0,0,0,0,0,0,0,0,0,0,0,0,0,0,0,0,0,0,0,0,0,0,0]
[null,13,"Loans and advances",0,0,0,0,0,0,0,0,0,0,0,0,0,0,0,0,0,0,0,0,0,0,0,0,0,0,0,0,0,0,0]
[null,14,"Debt securities, including UoP",0,0,0,0,0,0,0,0,0,0,0,0,0,0,0,0,0,0,0,0,0,0,0,0,0,0,0,0,0,0,0]
[null,15,"Equity instruments",0,0,0,0,0,0,0,0,0,0,0,0,0,0,0,0,0,0,0,0,0,0,0,0,0,0,0,0,0,0,0]
[null,16,"of which insurance undertakings",0,0,0,0,0,0,0,0,0,0,0,0,0,0,0,0,0,0,0,0,0,0,0,0,0,0,0,0,0,0,0]
[null,17,"Loans and advances",0,0,0,0,0,0,0,0,0,0,0,0,0,0,0,0,0,0,0,0,0,0,0,0,0,0,0,0,0,0,0]
[null,18,"Debt securities, including UoP",0,0,0,0,0,0,0,0,0,0,0,0,0,0,0,0,0,0,0,0,0,0,0,0,0,0,0,0,0,0,0]
[null,19,"Equity instruments",0,0,null,0,0,0,0,null,0,0,0,null,0,0,0,null,0,0,0,null,0,0,0,null,0,0,0,null,0,0,0]
[null,20,"Non-financial undertakings",0,0,0,0,0,0,0,0,0,0,0,0,0,0,0,0,0,0,0,0,0,0,0,0,0,0,0,0,0,0,7.0396970782145478E-3]
[null,21,"Loans and advances",0,0,0,0,0,0,0,0,0,0,0,0,0,0,0,0,0,0,0,0,0,0,0,0,0,0,0,0,0,0,7.0396970782145478E-3]
[null,22,"Debt securities, including UoP",0,0,0,0,0,0,0,0,0,0,0,0,0,0,0,0,0,0,0,0,0,0,0,0,0,0,0,0,0,0,0]
[null,23,"Equity instruments",0,0,null,0,0,0,0,null,0,0,0,null,0,0,0,null,0,0,0,null,0,0,0,null,0,0,0,null,0,0,0]
[null,24,"Households",0.14916972224312344,1.014608377334698E-2,0,0,0,0,0,0,0,null,null,null,null,0,0,0,0,null,null,null,null,null,null,null,null,0.14916972224312344,1.014608377334698E-2,0,0,0,0.40019656538030762]
[null,25,"of which loans collateralised by residential immovable property",0.21393823599963224,1.8454915350050501E-2,0,0,0,0,0,0,0,null,null,null,null,0,0,0,0,null,null,null,null,null,null,null,null,0.21393823599963224,1.8454915350050501E-2,0,0,0,0]
[null,26,"of which building renovation loans",0,0,0,0,0,0,0,0,0,null,null,null,null,0,0,0,0,null,null,null,null,null,null,null,null,0,0,0,0,0,0]
[null,27,"of which motor vehicle loans",0.40526398247583889,0,0,0,0,null,null,null,null,null,null,null,null,null,null,null,null,null,null,null,null,null,null,null,null,0.40526398247583889,0,0,0,0,0]
[null,28,"Local governments financing",0,0,0,0,0,0,0,0,0,0,0,0,0,0,0,0,0,0,0,0,0,0,0,0,0,0,0,0,0,0,0]
[null,29,"Housing financing",0,0,0,0,0,0,0,0,0,0,0,0,0,0,0,0,0,0,0,0,0,0,0,0,0,0,0,0,0,0,0]
[null,30,"Other local government financing",0,0,0,0,0,0,0,0,0,0,0,0,0,0,0,0,0,0,0,0,0,0,0,0,0,0,0,0,0,0,0]
[null,31,"Collateral obtained by taking possession: residential and commercial immovable properties ",0,0,0,0,0,0,0,0,0,0,0,0,0,0,0,0,0,0,0,0,0,0,0,0,0,0,0,0,0,0,0]
[null,32,"Total GAR assets",3.7790953812548315E-2,2.5704290219959658E-3,0,0,0,0,0,0,0,0,0,0,0,0,0,0,0,0,0,0,0,0,0,0,0,3.7790953812548315E-2,2.5704290219959658E-3,0,0,0,0.42542548060446223]
[]
[]
[]
[]
[]
[]
[]
[]
[null,"% (compared to flow of total eligible assets)",null,"31.12.2023"]
[null,null,null,"Climate Change Mitigation (CCM)",null,null,null,null,"Climate Change Adaptation (CCA)",null,null,null,"Water and marine resources (WTR)",null,null,null,"Circular economy (CE)",null,null,null,"Pollution (PPC)",null,null,null,"Biodiversity and Ecosystems (BIO)",null,null,null,"TOTAL (CCM + CCA + WTR + CE + PPC + BIO)"]
[null,null,null,"Proportion of total covered assets funding taxonomy relevant sectors (Taxonomy-eligible)",null,null,null,null,"Proportion of total covered assets funding taxonomy relevant sectors (Taxonomy-eligible)",null,null,null,"Proportion of total covered assets funding taxonomy relevant sectors (Taxonomy-eligible)",null,null,null,"Proportion of total covered assets funding taxonomy relevant sectors (Taxonomy-eligible)",null,null,null,"Proportion of total covered assets funding taxonomy relevant sectors (Taxonomy-eligible)",null,null,null,"Proportion of total covered assets funding taxonomy relevant sectors (Taxonomy-eligible)",null,null,null,"Proportion of total covered assets funding taxonomy relevant sectors (Taxonomy-eligible)",null,null,null,null,"Proportion of total new assets covered"]
[null,null,null,null,"Proportion of total covered assets funding taxonomy relevant sectors (Taxonomy-aligned)",null,null,null,null,"Proportion of total covered assets funding taxonomy relevant sectors (Taxonomy-aligned)",null,null,null,"Proportion of total covered assets funding taxonomy relevant sectors (Taxonomy-aligned)",null,null,null,"Proportion of total covered assets funding taxonomy relevant sectors (Taxonomy-aligned)",null,null,null,"Proportion of total covered assets funding taxonomy relevant sectors (Taxonomy-aligned)",null,null,null,"Proportion of total covered assets funding taxonomy relevant sectors (Taxonomy-aligned)",null,null,null,"Proportion of total covered assets funding taxonomy relevant sectors (Taxonomy-aligned)"]
[null,null,null,null,null,"Of which Use of Proceeds","Of which transitional","Of which enabling",null,null,"Of which Use of Proceeds","Of which enabling",null,null,"Of which Use of Proceeds","Of which enabling",null,null,"Of which Use of Proceeds","Of which enabling",null,null,"Of which Use of Proceeds","Of which enabling",null,null,"Of which Use of Proceeds","Of which enabling",null,null,"Of which Use of Proceeds","Of which transitional","Of which enabling"]
[null,null,"GAR - Covered assets in both numerator and denominator"]
[null,1,"Loans and advances, debt securities and equity instruments not HfT eligible for GAR calculation",0,0,0,0,0,0,0,0,0,0,0,0,0,0,0,0,0,0,0,0,0,0,0,0,0,0,0,0,0,0,0]
[null,2,"Financial undertakings ",0,0,0,0,0,0,0,0,0,0,0,0,0,0,0,0,0,0,0,0,0,0,0,0,0,0,0,0,0,0,4.4912003140362679E-2]
[null,3,"Credit institutions",0,0,0,0,0,0,0,0,0,0,0,0,0,0,0,0,0,0,0,0,0,0,0,0,0,0,0,0,0,0,0]
[null,4,"Loans and advances",0,0,0,0,0,0,0,0,0,0,0,0,0,0,0,0,0,0,0,0,0,0,0,0,0,0,0,0,0,0,0]
[null,5,"Debt securities, including UoP",0,0,0,0,0,0,0,0,0,0,0,0,0,0,0,0,0,0,0,0,0,0,0,0,0,0,0,0,0,0,0]
[null,6,"Equity instruments",0,0,null,0,0,0,0,null,0,0,0,null,0,0,0,null,0,0,0,null,0,0,0,null,0,0,0,null,0,0,0]
[null,7,"Other financial corporations",0,0,0,0,0,0,0,0,0,0,0,0,0,0,0,0,0,0,0,0,0,0,0,0,0,0,0,0,0,0,0]
[null,8,"of which investment firms",0,0,0,0,0,0,0,0,0,0,0,0,0,0,0,0,0,0,0,0,0,0,0,0,0,0,0,0,0,0,0]
[null,9,"Loans and advances",0,0,0,0,0,0,0,0,0,0,0,0,0,0,0,0,0,0,0,0,0,0,0,0,0,0,0,0,0,0,4.4912003140362679E-2]
[null,10,"Debt securities, including UoP",0,0,0,0,0,0,0,0,0,0,0,0,0,0,0,0,0,0,0,0,0,0,0,0,0,0,0,0,0,0,0]
[null,11,"Equity instruments",0,0,null,0,0,0,0,null,0,0,0,null,0,0,0,null,0,0,0,null,0,0,0,null,0,0,0,null,0,0,0]
[null,12,"of which  management companies",0,0,0,0,0,0,0,0,0,0,0,0,0,0,0,0,0,0,0,0,0,0,0,0,0,0,0,0,0,0,0]
[null,13,"Loans and advances",0,0,0,0,0,0,0,0,0,0,0,0,0,0,0,0,0,0,0,0,0,0,0,0,0,0,0,0,0,0,0]
[null,14,"Debt securities, including UoP",0,0,0,0,0,0,0,0,0,0,0,0,0,0,0,0,0,0,0,0,0,0,0,0,0,0,0,0,0,0,0]
[null,15,"Equity instruments",0,0,0,0,0,0,0,0,0,0,0,0,0,0,0,0,0,0,0,0,0,0,0,0,0,0,0,0,0,0,0]
[null,16,"of which insurance undertakings",0,0,0,0,0,0,0,0,0,0,0,0,0,0,0,0,0,0,0,null,0,0,0,0,0,0,0,0,0,0,0]
[null,17,"Loans and advances",0,0,0,0,0,0,0,0,0,0,0,0,0,0,0,0,0,0,0,0,0,0,0,0,0,0,0,0,0,0,0]
[null,18,"Debt securities, including UoP",0,0,0,0,0,0,0,0,0,0,0,0,0,0,0,0,0,0,0,0,0,0,0,0,0,0,0,0,0,0,0]
[null,19,"Equity instruments",0,0,null,0,0,0,0,null,0,0,0,null,0,0,0,0,0,0,0,null,0,0,0,null,0,0,0,null,0,0,0]
[null,20,"Non-financial undertakings",0,0,0,0,0,0,0,0,0,0,0,0,0,0,0,0,0,0,0,0,0,0,0,0,0,0,0,0,0,0,1.3782659469654596E-2]
[null,21,"Loans and advances",0,0,0,0,0,0,0,0,0,0,0,0,0,0,0,0,0,0,0,0,0,0,0,0,0,0,0,0,0,0,1.3782659469654596E-2]
[null,22,"Debt securities, including UoP",0,0,0,0,0,0,0,0,0,0,0,0,0,0,0,0,0,0,0,0,0,0,0,0,0,0,0,0,0,0,0]
[null,23,"Equity instruments",0,0,null,0,0,0,0,null,0,0,0,null,0,0,0,0,0,0,0,null,0,0,0,null,0,0,0,null,0,0,0]
[null,24,"Households",0.17342214591699998,4.7678710957253833E-3,0,0,0,0,0,0,0,null,null,null,null,0,0,0,0,null,null,null,null,null,null,null,null,0,0,0,0,0,0.57885193696213488]
[null,25,"of which loans collateralised by residential immovable property",0.2740620035097332,9.0290784204988071E-3,0,0,0,0,0,0,0,null,null,null,null,0,0,0,0,null,null,null,null,null,null,null,null,0,0,0,0,0,0.29107854622556367]
[null,26,"of which building renovation loans",0,0,0,0,0,0,0,0,0,null,null,null,null,0,0,0,0,null,null,null,null,null,null,null,null,0,0,0,0,0,0]
[null,27,"of which motor vehicle loans",0.38873394403211536,0,0,0,0,null,null,null,null,null,null,null,null,null,null,null,null,null,null,null,null,null,null,null,null,0,0,0,0,0,5.7728174729360031E-2]
[null,28,"Local governments financing",0,0,0,0,0,0,0,0,0,0,0,0,0,0,0,0,0,0,0,0,0,0,0,0,0,0,0,0,0,0,0]
[null,29,"Housing financing",0,0,0,0,0,0,0,0,0,0,0,0,0,0,0,0,0,0,0,0,0,0,0,0,0,0,0,0,0,0,0]
[null,30,"Other local government financing",0,0,0,0,0,0,0,0,0,0,0,0,0,0,0,0,0,0,0,0,0,0,0,0,0,0,0,0,0,0,0]
[null,31,"Collateral obtained by taking possession: residential and commercial immovable properties ",0,0,0,0,0,0,0,0,0,0,0,0,0,0,0,0,0,0,0,0,0,0,0,0,0,0,0,0,0,0,0]
[null,32,"Total GAR assets",4.4605773735638399E-2,1.2263403740742722E-3,0,0,0,0,0,0,0,0,0,0,0,0,0,0,0,0,0,0,0,0,0,0,0,0,0,0,0,0,0.63754659957215221]

{"sheet":"4. GAR KPI flow - CAPEX","index":11,"n_rows":88,"n_cols":34,"rows_kept":88,"cut":false,"hidden":false,"merged":[[1,1,1,3],[4,1,8,2],[4,3,4,33],[5,3,5,7],[5,8,5,11],[5,12,5,15],[5,16,5,19],[5,20,5,23],[5,24,5,27],[5,28,5,32],[6,28,6,32],[6,33,8,33],[7,4,7,7],[7,9,7,11],[7,13,7,15],[7,17,7,19],[7,21,7,23],[7,25,7,27],[7,29,7,32],[6,3,6,7],[6,8,6,11],[6,12,6,15],[6,16,6,19],[6,20,6,23],[6,24,6,27],[50,1,54,2],[50,3,50,33],[51,3,51,7],[51,8,51,11],[51,12,51,15],[51,16,51,19],[51,20,51,23],[51,24,51,27],[51,28,51,32],[52,3,52,7],[52,33,54,33],[53,4,53,7],[53,9,53,11],[53,13,53,15],[53,17,53,19],[53,21,53,23],[53,25,53,27],[53,29,53,32],[52,8,52,11],[52,12,52,15],[52,16,52,19],[52,20,52,23],[52,24,52,27],[52,28,52,32]]}
[]
[null,"4. GAR KPI flow - CAPEX"]
[]
[]
[null,"% (compared to flow of total eligible assets)",null,"31.12.2024"]
[null,null,null,"Climate Change Mitigation (CCM)",null,null,null,null,"Climate Change Adaptation (CCA)",null,null,null,"Water and marine resources (WTR)",null,null,null,"Circular economy (CE)",null,null,null,"Pollution (PPC)",null,null,null,"Biodiversity and Ecosystems (BIO)",null,null,null,"TOTAL (CCM + CCA + WTR + CE + PPC + BIO)"]
[null,null,null,"Proportion of total covered assets funding taxonomy relevant sectors (Taxonomy-eligible)",null,null,null,null,"Proportion of total covered assets funding taxonomy relevant sectors (Taxonomy-eligible)",null,null,null,"Proportion of total covered assets funding taxonomy relevant sectors (Taxonomy-eligible)",null,null,null,"Proportion of total covered assets funding taxonomy relevant sectors (Taxonomy-eligible)",null,null,null,"Proportion of total covered assets funding taxonomy relevant sectors (Taxonomy-eligible)",null,null,null,"Proportion of total covered assets funding taxonomy relevant sectors (Taxonomy-eligible)",null,null,null,"Proportion of total covered assets funding taxonomy relevant sectors (Taxonomy-eligible)",null,null,null,null,"Proportion of total new assets covered"]
[null,null,null,null,"Proportion of total covered assets funding taxonomy relevant sectors (Taxonomy-aligned)",null,null,null,null,"Proportion of total covered assets funding taxonomy relevant sectors (Taxonomy-aligned)",null,null,null,"Proportion of total covered assets funding taxonomy relevant sectors (Taxonomy-aligned)",null,null,null,"Proportion of total covered assets funding taxonomy relevant sectors (Taxonomy-aligned)",null,null,null,"Proportion of total covered assets funding taxonomy relevant sectors (Taxonomy-aligned)",null,null,null,"Proportion of total covered assets funding taxonomy relevant sectors (Taxonomy-aligned)",null,null,null,"Proportion of total covered assets funding taxonomy relevant sectors (Taxonomy-aligned)"]
[null,null,null,null,null,"Of which Use of Proceeds","Of which transitional","Of which enabling",null,null,"Of which Use of Proceeds","Of which enabling",null,null,"Of which Use of Proceeds","Of which enabling",null,null,"Of which Use of Proceeds","Of which enabling",null,null,"Of which Use of Proceeds","Of which enabling",null,null,"Of which Use of Proceeds","Of which enabling",null,null,"Of which Use of Proceeds","Of which transitional","Of which enabling"]
[null,null,"GAR - Covered assets in both numerator and denominator"]
[null,1,"Loans and advances, debt securities and equity instruments not HfT eligible for GAR calculation",0,0,0,0,0,0,0,0,0,0,0,0,0,0,0,0,0,0,0,0,0,0,0,0,0,0,0,0,0,0,0]
[null,2,"Financial undertakings ",0,0,0,0,0,0,0,0,0,0,0,0,0,0,0,0,0,0,0,0,0,0,0,0,0,0,0,0,0,0,1.8189218145940048E-2]
[null,3,"Credit institutions",0,0,0,0,0,0,0,0,0,0,0,0,0,0,0,0,0,0,0,0,0,0,0,0,0,0,0,0,0,0,0]
[null,4,"Loans and advances",0,0,0,0,0,0,0,0,0,0,0,0,0,0,0,0,0,0,0,0,0,0,0,0,0,0,0,0,0,0,0]
[null,5,"Debt securities, including UoP",0,0,0,0,0,0,0,0,0,0,0,0,0,0,0,0,0,0,0,0,0,0,0,0,0,0,0,0,0,0,0]
[null,6,"Equity instruments",0,0,null,0,0,0,0,null,0,0,0,null,0,0,0,null,0,0,0,null,0,0,0,null,0,0,0,null,0,0,0]
[null,7,"Other financial corporations",0,0,0,0,0,0,0,0,0,0,0,0,0,0,0,0,0,0,0,0,0,0,0,0,0,0,0,0,0,0,0]
[null,8,"of which investment firms",0,0,0,0,0,0,0,0,0,0,0,0,0,0,0,0,0,0,0,0,0,0,0,0,0,0,0,0,0,0,0]
[null,9,"Loans and advances",0,0,0,0,0,0,0,0,0,0,0,0,0,0,0,0,0,0,0,0,0,0,0,0,0,0,0,0,0,0,1.8189218145940048E-2]
[null,10,"Debt securities, including UoP",0,0,0,0,0,0,0,0,0,0,0,0,0,0,0,0,0,0,0,0,0,0,0,0,0,0,0,0,0,0,0]
[null,11,"Equity instruments",0,0,null,0,0,0,0,null,0,0,0,null,0,0,0,null,0,0,0,null,0,0,0,null,0,0,0,null,0,0,0]
[null,12,"of which  management companies",0,0,0,0,0,0,0,0,0,0,0,0,0,0,0,0,0,0,0,0,0,0,0,0,0,0,0,0,0,0,0]
[null,13,"Loans and advances",0,0,0,0,0,0,0,0,0,0,0,0,0,0,0,0,0,0,0,0,0,0,0,0,0,0,0,0,0,0,0]
[null,14,"Debt securities, including UoP",0,0,0,0,0,0,0,0,0,0,0,0,0,0,0,0,0,0,0,0,0,0,0,0,0,0,0,0,0,0,0]
[null,15,"Equity instruments",0,0,0,0,0,0,0,0,0,0,0,0,0,0,0,0,0,0,0,0,0,0,0,0,0,0,0,0,0,0,0]
[null,16,"of which insurance undertakings",0,0,0,0,0,0,0,0,0,0,0,0,0,0,0,0,0,0,0,0,0,0,0,0,0,0,0,0,0,0,0]
[null,17,"Loans and advances",0,0,0,0,0,0,0,0,0,0,0,0,0,0,0,0,0,0,0,0,0,0,0,0,0,0,0,0,0,0,0]
[null,18,"Debt securities, including UoP",0,0,0,0,0,0,0,0,0,0,0,0,0,0,0,0,0,0,0,0,0,0,0,0,0,0,0,0,0,0,0]
[null,19,"Equity instruments",0,0,null,0,0,0,0,null,0,0,0,null,0,0,0,null,0,0,0,null,0,0,0,null,0,0,0,null,0,0,0]
[null,20,"Non-financial undertakings",0,0,0,0,0,0,0,0,0,0,0,0,0,0,0,0,0,0,0,0,0,0,0,0,0,0,0,0,0,0,7.0396970782145478E-3]
[null,21,"Loans and advances",0,0,0,0,0,0,0,0,0,0,0,0,0,0,0,0,0,0,0,0,0,0,0,0,0,0,0,0,0,0,7.0396970782145478E-3]
[null,22,"Debt securities, including UoP",0,0,0,0,0,0,0,0,0,0,0,0,0,0,0,0,0,0,0,0,0,0,0,0,0,0,0,0,0,0,0]
[null,23,"Equity instruments",0,0,null,0,0,0,0,null,0,0,0,null,0,0,0,null,0,0,0,null,0,0,0,null,0,0,0,null,0,0,0]
[null,24,"Households",0.14916972224312344,1.014608377334698E-2,0,0,0,0,0,0,0,null,null,null,null,0,0,0,0,null,null,null,null,null,null,null,null,0.14916972224312344,1.014608377334698E-2,0,0,0,0.40019656538030762]
[null,25,"of which loans collateralised by residential immovable property",0.21393823599963224,1.8454915350050501E-2,0,0,0,0,0,0,0,null,null,null,null,0,0,0,0,null,null,null,null,null,null,null,null,0.21393823599963224,1.8454915350050501E-2,0,0,0,0]
[null,26,"of which building renovation loans",0,0,0,0,0,0,0,0,0,null,null,null,null,0,0,0,0,null,null,null,null,null,null,null,null,0,0,0,0,0,0]
[null,27,"of which motor vehicle loans",0.40526398247583889,0,0,0,0,null,null,null,null,null,null,null,null,null,null,null,null,null,null,null,null,null,null,null,null,0.40526398247583889,0,0,0,0,0]
[null,28,"Local governments financing",0,0,0,0,0,0,0,0,0,0,0,0,0,0,0,0,0,0,0,0,0,0,0,0,0,0,0,0,0,0,0]
[null,29,"Housing financing",0,0,0,0,0,0,0,0,0,0,0,0,0,0,0,0,0,0,0,0,0,0,0,0,0,0,0,0,0,0,0]
[null,30,"Other local government financing",0,0,0,0,0,0,0,0,0,0,0,0,0,0,0,0,0,0,0,0,0,0,0,0,0,0,0,0,0,0,0]
[null,31,"Collateral obtained by taking possession: residential and commercial immovable properties ",0,0,0,0,0,0,0,0,0,0,0,0,0,0,0,0,0,0,0,0,0,0,0,0,0,0,0,0,0,0,0]
[null,32,"Total GAR assets",3.7790953812548315E-2,2.5704290219959658E-3,0,0,0,0,0,0,0,0,0,0,0,0,0,0,0,0,0,0,0,0,0,0,0,3.7790953812548315E-2,2.5704290219959658E-3,0,0,0,0.42542548060446223]
[]
[]
[]
[]
[]
[]
[]
[]
[null,"% (compared to flow of total eligible assets)",null,"31.12.2023"]
[null,null,null,"Climate Change Mitigation (CCM)",null,null,null,null,"Climate Change Adaptation (CCA)",null,null,null,"Water and marine resources (WTR)",null,null,null,"Circular economy (CE)",null,null,null,"Pollution (PPC)",null,null,null,"Biodiversity and Ecosystems (BIO)",null,null,null,"TOTAL (CCM + CCA + WTR + CE + PPC + BIO)"]
[null,null,null,"Proportion of total covered assets funding taxonomy relevant sectors (Taxonomy-eligible)",null,null,null,null,"Proportion of total covered assets funding taxonomy relevant sectors (Taxonomy-eligible)",null,null,null,"Proportion of total covered assets funding taxonomy relevant sectors (Taxonomy-eligible)",null,null,null,"Proportion of total covered assets funding taxonomy relevant sectors (Taxonomy-eligible)",null,null,null,"Proportion of total covered assets funding taxonomy relevant sectors (Taxonomy-eligible)",null,null,null,"Proportion of total covered assets funding taxonomy relevant sectors (Taxonomy-eligible)",null,null,null,"Proportion of total covered assets funding taxonomy relevant sectors (Taxonomy-eligible)",null,null,null,null,"Proportion of total new assets covered"]
[null,null,null,null,"Proportion of total covered assets funding taxonomy relevant sectors (Taxonomy-aligned)",null,null,null,null,"Proportion of total covered assets funding taxonomy relevant sectors (Taxonomy-aligned)",null,null,null,"Proportion of total covered assets funding taxonomy relevant sectors (Taxonomy-aligned)",null,null,null,"Proportion of total covered assets funding taxonomy relevant sectors (Taxonomy-aligned)",null,null,null,"Proportion of total covered assets funding taxonomy relevant sectors (Taxonomy-aligned)",null,null,null,"Proportion of total covered assets funding taxonomy relevant sectors (Taxonomy-aligned)",null,null,null,"Proportion of total covered assets funding taxonomy relevant sectors (Taxonomy-aligned)"]
[null,null,null,null,null,"Of which Use of Proceeds","Of which transitional","Of which enabling",null,null,"Of which Use of Proceeds","Of which enabling",null,null,"Of which Use of Proceeds","Of which enabling",null,null,"Of which Use of Proceeds","Of which enabling",null,null,"Of which Use of Proceeds","Of which enabling",null,null,"Of which Use of Proceeds","Of which enabling",null,null,"Of which Use of Proceeds","Of which transitional","Of which enabling"]
[null,null,"GAR - Covered assets in both numerator and denominator"]
[null,1,"Loans and advances, debt securities and equity instruments not HfT eligible for GAR calculation",0,0,0,0,0,0,0,0,0,0,0,0,0,0,0,0,0,0,0,0,0,0,0,0,0,0,0,0,0,0,0]
[null,2,"Financial undertakings ",0,0,0,0,0,0,0,0,0,0,0,0,0,0,0,0,0,0,0,0,0,0,0,0,0,0,0,0,0,0,4.4912003140362679E-2]
[null,3,"Credit institutions",0,0,0,0,0,0,0,0,0,0,0,0,0,0,0,0,0,0,0,0,0,0,0,0,0,0,0,0,0,0,0]
[null,4,"Loans and advances",0,0,0,0,0,0,0,0,0,0,0,0,0,0,0,0,0,0,0,0,0,0,0,0,0,0,0,0,0,0,0]
[null,5,"Debt securities, including UoP",0,0,0,0,0,0,0,0,0,0,0,0,0,0,0,0,0,0,0,0,0,0,0,0,0,0,0,0,0,0,0]
[null,6,"Equity instruments",0,0,null,0,0,0,0,null,0,0,0,null,0,0,0,null,0,0,0,null,0,0,0,null,0,0,0,null,0,0,0]
[null,7,"Other financial corporations",0,0,0,0,0,0,0,0,0,0,0,0,0,0,0,0,0,0,0,0,0,0,0,0,0,0,0,0,0,0,0]
[null,8,"of which investment firms",0,0,0,0,0,0,0,0,0,0,0,0,0,0,0,0,0,0,0,0,0,0,0,0,0,0,0,0,0,0,0]
[null,9,"Loans and advances",0,0,0,0,0,0,0,0,0,0,0,0,0,0,0,0,0,0,0,0,0,0,0,0,0,0,0,0,0,0,4.4912003140362679E-2]
[null,10,"Debt securities, including UoP",0,0,0,0,0,0,0,0,0,0,0,0,0,0,0,0,0,0,0,0,0,0,0,0,0,0,0,0,0,0,0]
[null,11,"Equity instruments",0,0,null,0,0,0,0,null,0,0,0,null,0,0,0,null,0,0,0,null,0,0,0,null,0,0,0,null,0,0,0]
[null,12,"of which  management companies",0,0,0,0,0,0,0,0,0,0,0,0,0,0,0,0,0,0,0,0,0,0,0,0,0,0,0,0,0,0,0]
[null,13,"Loans and advances",0,0,0,0,0,0,0,0,0,0,0,0,0,0,0,0,0,0,0,0,0,0,0,0,0,0,0,0,0,0,0]
[null,14,"Debt securities, including UoP",0,0,0,0,0,0,0,0,0,0,0,0,0,0,0,0,0,0,0,0,0,0,0,0,0,0,0,0,0,0,0]
[null,15,"Equity instruments",0,0,0,0,0,0,0,0,0,0,0,0,0,0,0,0,0,0,0,0,0,0,0,0,0,0,0,0,0,0,0]
[null,16,"of which insurance undertakings",0,0,0,0,0,0,0,0,0,0,0,0,0,0,0,0,0,0,0,null,0,0,0,0,0,0,0,0,0,0,0]
[null,17,"Loans and advances",0,0,0,0,0,0,0,0,0,0,0,0,0,0,0,0,0,0,0,0,0,0,0,0,0,0,0,0,0,0,0]
[null,18,"Debt securities, including UoP",0,0,0,0,0,0,0,0,0,0,0,0,0,0,0,0,0,0,0,0,0,0,0,0,0,0,0,0,0,0,0]
[null,19,"Equity instruments",0,0,null,0,0,0,0,null,0,0,0,null,0,0,0,0,0,0,0,null,0,0,0,null,0,0,0,null,0,0,0]
[null,20,"Non-financial undertakings",0,0,0,0,0,0,0,0,0,0,0,0,0,0,0,0,0,0,0,0,0,0,0,0,0,0,0,0,0,0,1.3782659469654596E-2]
[null,21,"Loans and advances",0,0,0,0,0,0,0,0,0,0,0,0,0,0,0,0,0,0,0,0,0,0,0,0,0,0,0,0,0,0,1.3782659469654596E-2]
[null,22,"Debt securities, including UoP",0,0,0,0,0,0,0,0,0,0,0,0,0,0,0,0,0,0,0,0,0,0,0,0,0,0,0,0,0,0,0]
[null,23,"Equity instruments",0,0,null,0,0,0,0,null,0,0,0,null,0,0,0,0,0,0,0,null,0,0,0,null,0,0,0,null,0,0,0]
[null,24,"Households",0.17342214591699998,4.7678710957253833E-3,0,0,0,0,0,0,0,null,null,null,null,0,0,0,0,null,null,null,null,null,null,null,null,0,0,0,0,0,0.57885193696213488]
[null,25,"of which loans collateralised by residential immovable property",0.2740620035097332,9.0290784204988071E-3,0,0,0,0,0,0,0,null,null,null,null,0,0,0,0,null,null,null,null,null,null,null,null,0,0,0,0,0,0.29107854622556367]
[null,26,"of which building renovation loans",0,0,0,0,0,0,0,0,0,null,null,null,null,0,0,0,0,null,null,null,null,null,null,null,null,0,0,0,0,0,0]
[null,27,"of which motor vehicle loans",0.38873394403211536,0,0,0,0,null,null,null,null,null,null,null,null,null,null,null,null,null,null,null,null,null,null,null,null,0,0,0,0,0,5.7728174729360031E-2]
[null,28,"Local governments financing",0,0,0,0,0,0,0,0,0,0,0,0,0,0,0,0,0,0,0,0,0,0,0,0,0,0,0,0,0,0,0]
[null,29,"Housing financing",0,0,0,0,0,0,0,0,0,0,0,0,0,0,0,0,0,0,0,0,0,0,0,0,0,0,0,0,0,0,0]
[null,30,"Other local government financing",0,0,0,0,0,0,0,0,0,0,0,0,0,0,0,0,0,0,0,0,0,0,0,0,0,0,0,0,0,0,0]
[null,31,"Collateral obtained by taking possession: residential and commercial immovable properties ",0,0,0,0,0,0,0,0,0,0,0,0,0,0,0,0,0,0,0,0,0,0,0,0,0,0,0,0,0,0,0]
[null,32,"Total GAR assets",4.4605773735638399E-2,1.2263403740742722E-3,0,0,0,0,0,0,0,0,0,0,0,0,0,0,0,0,0,0,0,0,0,0,0,0,0,0,0,0,0.63754659957215221]

{"sheet":"5. FinGar AuM KPI - Turnover","index":12,"n_rows":26,"n_cols":33,"rows_kept":26,"cut":false,"hidden":false,"merged":[[1,1,1,3],[4,1,8,2],[4,3,4,32],[5,3,5,7],[5,8,5,11],[5,12,5,15],[5,16,5,19],[5,20,5,23],[5,24,5,27],[5,28,5,32],[6,28,6,32],[7,4,7,7],[7,9,7,11],[7,13,7,15],[7,17,7,19],[7,21,7,23],[7,25,7,27],[7,29,7,32],[6,3,6,7],[6,8,6,11],[6,12,6,15],[6,16,6,19],[6,20,6,23],[6,24,6,27],[19,1,23,2],[19,3,19,32],[20,3,20,7],[20,8,20,11],[20,12,20,15],[20,16,20,19],[20,20,20,23],[20,24,20,27],[20,28,20,32],[21,3,21,7],[22,25,22,27],[22,29,22,32],[21,8,21,11],[21,12,21,15],[21,16,21,19],[21,20,21,23],[21,24,21,27],[21,28,21,32],[22,4,22,7],[22,9,22,11],[22,13,22,15],[22,17,22,19],[22,21,22,23]]}
[]
[null,"5. KPI off-balance sheet exposures - Turnover"]
[]
[]
[null,"% (compared to flow of total eligible assets)",null,"31.12.2024"]
[null,null,null,"Climate Change Mitigation (CCM)",null,null,null,null,"Climate Change Adaptation (CCA)",null,null,null,"Water and marine resources (WTR)",null,null,null,"Circular economy (CE)",null,null,null,"Pollution (PPC)",null,null,null,"Biodiversity and Ecosystems (BIO)",null,null,null,"TOTAL (CCM + CCA + WTR + CE + PPC + BIO)"]
[null,null,null,"Proportion of total covered assets funding taxonomy relevant sectors (Taxonomy-eligible)",null,null,null,null,"Proportion of total covered assets funding taxonomy relevant sectors (Taxonomy-eligible)",null,null,null,"Proportion of total covered assets funding taxonomy relevant sectors (Taxonomy-eligible)",null,null,null,"Proportion of total covered assets funding taxonomy relevant sectors (Taxonomy-eligible)",null,null,null,"Proportion of total covered assets funding taxonomy relevant sectors (Taxonomy-eligible)",null,null,null,"Proportion of total covered assets funding taxonomy relevant sectors (Taxonomy-eligible)",null,null,null,"Proportion of total covered assets funding taxonomy relevant sectors (Taxonomy-eligible)"]
[null,null,null,null,"Proportion of total covered assets funding taxonomy relevant sectors (Taxonomy-aligned)",null,null,null,null,"Proportion of total covered assets funding taxonomy relevant sectors (Taxonomy-aligned)",null,null,null,"Proportion of total covered assets funding taxonomy relevant sectors (Taxonomy-aligned)",null,null,null,"Proportion of total covered assets funding taxonomy relevant sectors (Taxonomy-aligned)",null,null,null,"Proportion of total covered assets funding taxonomy relevant sectors (Taxonomy-aligned)",null,null,null,"Proportion of total covered assets funding taxonomy relevant sectors (Taxonomy-aligned)",null,null,null,"Proportion of total covered assets funding taxonomy relevant sectors (Taxonomy-aligned)"]
[null,null,null,null,null,"Of which Use of Proceeds","Of which transitional","Of which enabling",null,null,"Of which Use of Proceeds","Of which enabling",null,null,"Of which Use of Proceeds","Of which enabling",null,null,"Of which Use of Proceeds","Of which enabling",null,null,"Of which Use of Proceeds","Of which enabling",null,null,"Of which Use of Proceeds","Of which enabling",null,null,"Of which Use of Proceeds","Of which transitional","Of which enabling"]
[null,1,"Financial guarantees (FinGuar KPI)",0.15853352523823261,1.4723313462328037E-2,0,0,0,0,0,0,0,0,0,0,0,0,0,0,0,0,0,0,0,0,0,0,0,0.15853352523823261,1.4723313462328037E-2,0,0,0]
[null,2,"Assets under management (AuM KPI)",0.26831986040453604,8.1320012472895664E-2,0,4.3399267672018854E-3,4.3806757872051016E-2,0,0,0,0,0,0,0,0,0,0,0,0,0,0,0,0,0,0,0,0,0.26831986040453604,8.1320012472895664E-2,0,4.3399267672018854E-3,4.3806757872051016E-2]
[]
[]
[]
[]
[]
[]
[]
[]
[null,"% (compared to flow of total eligible assets)",null,"31.12.2023"]
[null,null,null,"Climate Change Mitigation (CCM)",null,null,null,null,"Climate Change Adaptation (CCA)",null,null,null,"Water and marine resources (WTR)",null,null,null,"Circular economy (CE)",null,null,null,"Pollution (PPC)",null,null,null,"Biodiversity and Ecosystems (BIO)",null,null,null,"TOTAL (CCM + CCA + WTR + CE + PPC + BIO)"]
[null,null,null,"Proportion of total covered assets funding taxonomy relevant sectors (Taxonomy-eligible)",null,null,null,null,"Proportion of total covered assets funding taxonomy relevant sectors (Taxonomy-eligible)",null,null,null,"Proportion of total covered assets funding taxonomy relevant sectors (Taxonomy-eligible)",null,null,null,"Proportion of total covered assets funding taxonomy relevant sectors (Taxonomy-eligible)",null,null,null,"Proportion of total covered assets funding taxonomy relevant sectors (Taxonomy-eligible)",null,null,null,"Proportion of total covered assets funding taxonomy relevant sectors (Taxonomy-eligible)",null,null,null,"Proportion of total covered assets funding taxonomy relevant sectors (Taxonomy-eligible)"]
[null,null,null,null,"Proportion of total covered assets funding taxonomy relevant sectors (Taxonomy-aligned)",null,null,null,null,"Proportion of total covered assets funding taxonomy relevant sectors (Taxonomy-aligned)",null,null,null,"Proportion of total covered assets funding taxonomy relevant sectors (Taxonomy-aligned)",null,null,null,"Proportion of total covered assets funding taxonomy relevant sectors (Taxonomy-aligned)",null,null,null,"Proportion of total covered assets funding taxonomy relevant sectors (Taxonomy-aligned)",null,null,null,"Proportion of total covered assets funding taxonomy relevant sectors (Taxonomy-aligned)",null,null,null,"Proportion of total covered assets funding taxonomy relevant sectors (Taxonomy-aligned)"]
[null,null,null,null,null,"Of which Use of Proceeds","Of which transitional","Of which enabling",null,null,"Of which Use of Proceeds","Of which enabling",null,null,"Of which Use of Proceeds","Of which enabling",null,null,"Of which Use of Proceeds","Of which enabling",null,null,"Of which Use of Proceeds","Of which enabling",null,null,"Of which Use of Proceeds","Of which enabling",null,null,"Of which Use of Proceeds","Of which transitional","Of which enabling"]
[null,1,"Financial guarantees (FinGuar KPI)",0,0,0,0,0,0,0,0,0,0,0,0,0,0,0,0,0,0,0,0,0,0,0,0,0,0,0,0,0,0]
[null,2,"Assets under management (AuM KPI)",7.3379316850312015E-2,7.0915299194557135E-2,0,6.594704663738343E-4,4.7475259148312965E-2,0,0,0,0,0,0,0,0,0,0,0,0,0,0,0,0,0,0,0,0,7.3379316850312015E-2,7.0915299194557135E-2,0,6.594704663738343E-4,4.7475259148312965E-2]

{"sheet":"5. FinGar AuM KPI - Turn Flow","index":13,"n_rows":26,"n_cols":33,"rows_kept":26,"cut":false,"hidden":false,"merged":[[1,1,1,3],[4,1,8,2],[4,3,4,32],[5,3,5,7],[5,8,5,11],[5,12,5,15],[5,16,5,19],[5,20,5,23],[5,24,5,27],[5,28,5,32],[6,28,6,32],[7,4,7,7],[7,9,7,11],[7,13,7,15],[7,17,7,19],[7,21,7,23],[7,25,7,27],[7,29,7,32],[6,3,6,7],[6,8,6,11],[6,12,6,15],[6,16,6,19],[6,20,6,23],[6,24,6,27],[21,28,21,32],[19,1,23,2],[19,3,19,32],[20,3,20,7],[20,8,20,11],[20,12,20,15],[20,16,20,19],[20,20,20,23],[20,24,20,27],[20,28,20,32],[21,3,21,7],[21,8,21,11],[21,12,21,15],[21,16,21,19],[21,20,21,23],[21,24,21,27],[22,29,22,32],[22,4,22,7],[22,9,22,11],[22,13,22,15],[22,17,22,19],[22,21,22,23],[22,25,22,27]]}
[]
[null,"5. KPI off-balance sheet exposures - Turn Flow"]
[]
[]
[null,"% (compared to flow of total eligible assets)",null,"31.12.2024"]
[null,null,null,"Climate Change Mitigation (CCM)",null,null,null,null,"Climate Change Adaptation (CCA)",null,null,null,"Water and marine resources (WTR)",null,null,null,"Circular economy (CE)",null,null,null,"Pollution (PPC)",null,null,null,"Biodiversity and Ecosystems (BIO)",null,null,null,"TOTAL (CCM + CCA + WTR + CE + PPC + BIO)"]
[null,null,null,"Proportion of total covered assets funding taxonomy relevant sectors (Taxonomy-eligible)",null,null,null,null,"Proportion of total covered assets funding taxonomy relevant sectors (Taxonomy-eligible)",null,null,null,"Proportion of total covered assets funding taxonomy relevant sectors (Taxonomy-eligible)",null,null,null,"Proportion of total covered assets funding taxonomy relevant sectors (Taxonomy-eligible)",null,null,null,"Proportion of total covered assets funding taxonomy relevant sectors (Taxonomy-eligible)",null,null,null,"Proportion of total covered assets funding taxonomy relevant sectors (Taxonomy-eligible)",null,null,null,"Proportion of total covered assets funding taxonomy relevant sectors (Taxonomy-eligible)"]
[null,null,null,null,"Proportion of total covered assets funding taxonomy relevant sectors (Taxonomy-aligned)",null,null,null,null,"Proportion of total covered assets funding taxonomy relevant sectors (Taxonomy-aligned)",null,null,null,"Proportion of total covered assets funding taxonomy relevant sectors (Taxonomy-aligned)",null,null,null,"Proportion of total covered assets funding taxonomy relevant sectors (Taxonomy-aligned)",null,null,null,"Proportion of total covered assets funding taxonomy relevant sectors (Taxonomy-aligned)",null,null,null,"Proportion of total covered assets funding taxonomy relevant sectors (Taxonomy-aligned)",null,null,null,"Proportion of total covered assets funding taxonomy relevant sectors (Taxonomy-aligned)"]
[null,null,null,null,null,"Of which Use of Proceeds","Of which transitional","Of which enabling",null,null,"Of which Use of Proceeds","Of which enabling",null,null,"Of which Use of Proceeds","Of which enabling",null,null,"Of which Use of Proceeds","Of which enabling",null,null,"Of which Use of Proceeds","Of which enabling",null,null,"Of which Use of Proceeds","Of which enabling",null,null,"Of which Use of Proceeds","Of which transitional","Of which enabling"]
[null,1,"Financial guarantees (FinGuar KPI)",2.846850437323813E-2,2.6437342679564283E-3,0,0,0,0,0,0,0,0,0,0,0,0,0,0,0,0,0,0,0,0,0,0,0,2.846850437323813E-2,2.6437342679564283E-3,0,0,0]
[null,2,"Assets under management (AuM KPI)",0.35399999999999998,9.9000000000000005E-2,0,2.1751773735811122E-3,5.1999999999999998E-2,2.0772663342648166E-4,1.2525159392294213E-4,0,2.5087839066373374E-5,0,0,0,0,0,0,0,0,0,0,0,0,0,0,0,0,0.35399999999999998,9.9000000000000005E-2,0,2.1751773735811122E-3,5.1999999999999998E-2]
[]
[]
[]
[]
[]
[]
[]
[]
[null,"% (compared to flow of total eligible assets)",null,"31.12.2023"]
[null,null,null,"Climate Change Mitigation (CCM)",null,null,null,null,"Climate Change Adaptation (CCA)",null,null,null,"Water and marine resources (WTR)",null,null,null,"Circular economy (CE)",null,null,null,"Pollution (PPC)",null,null,null,"Biodiversity and Ecosystems (BIO)",null,null,null,"TOTAL (CCM + CCA + WTR + CE + PPC + BIO)"]
[null,null,null,"Proportion of total covered assets funding taxonomy relevant sectors (Taxonomy-eligible)",null,null,null,null,"Proportion of total covered assets funding taxonomy relevant sectors (Taxonomy-eligible)",null,null,null,"Proportion of total covered assets funding taxonomy relevant sectors (Taxonomy-eligible)",null,null,null,"Proportion of total covered assets funding taxonomy relevant sectors (Taxonomy-eligible)",null,null,null,"Proportion of total covered assets funding taxonomy relevant sectors (Taxonomy-eligible)",null,null,null,"Proportion of total covered assets funding taxonomy relevant sectors (Taxonomy-eligible)",null,null,null,"Proportion of total covered assets funding taxonomy relevant sectors (Taxonomy-eligible)"]
[null,null,null,null,"Proportion of total covered assets funding taxonomy relevant sectors (Taxonomy-aligned)",null,null,null,null,"Proportion of total covered assets funding taxonomy relevant sectors (Taxonomy-aligned)",null,null,null,"Proportion of total covered assets funding taxonomy relevant sectors (Taxonomy-aligned)",null,null,null,"Proportion of total covered assets funding taxonomy relevant sectors (Taxonomy-aligned)",null,null,null,"Proportion of total covered assets funding taxonomy relevant sectors (Taxonomy-aligned)",null,null,null,"Proportion of total covered assets funding taxonomy relevant sectors (Taxonomy-aligned)",null,null,null,"Proportion of total covered assets funding taxonomy relevant sectors (Taxonomy-aligned)"]
[null,null,null,null,null,"Of which Use of Proceeds","Of which transitional","Of which enabling",null,null,"Of which Use of Proceeds","Of which enabling",null,null,"Of which Use of Proceeds","Of which enabling",null,null,"Of which Use of Proceeds","Of which enabling",null,null,"Of which Use of Proceeds","Of which enabling",null,null,"Of which Use of Proceeds","Of which enabling",null,null,"Of which Use of Proceeds","Of which transitional","Of which enabling"]
[null,1,"Financial guarantees (FinGuar KPI)",0,0,0,0,0,0,0,0,0,0,0,0,0,0,0,0,0,0,0,0,0,0,0,0,0,0,0,0,0,0]
[null,2,"Assets under management (AuM KPI)",0,0,0,0,0,0,0,0,0,0,0,0,0,0,0,0,0,0,0,0,0,0,0,0,0,0,0,0,0,0]

{"sheet":"5. FinGar AuM KPI - CAPEX","index":14,"n_rows":26,"n_cols":33,"rows_kept":26,"cut":false,"hidden":false,"merged":[[1,1,1,3],[4,1,8,2],[4,3,4,32],[5,3,5,7],[5,8,5,11],[5,12,5,15],[5,16,5,19],[5,20,5,23],[5,24,5,27],[5,28,5,32],[6,28,6,32],[7,4,7,7],[7,9,7,11],[7,13,7,15],[7,17,7,19],[7,21,7,23],[7,25,7,27],[7,29,7,32],[6,3,6,7],[6,8,6,11],[6,12,6,15],[6,16,6,19],[6,20,6,23],[6,24,6,27],[21,28,21,32],[19,1,23,2],[19,3,19,32],[20,3,20,7],[20,8,20,11],[20,12,20,15],[20,16,20,19],[20,20,20,23],[20,24,20,27],[20,28,20,32],[21,3,21,7],[21,8,21,11],[21,12,21,15],[21,16,21,19],[21,20,21,23],[21,24,21,27],[22,29,22,32],[22,4,22,7],[22,9,22,11],[22,13,22,15],[22,17,22,19],[22,21,22,23],[22,25,22,27]]}
[]
[null,"5. KPI off-balance sheet exposures - CAPEX"]
[]
[]
[null,"% (compared to flow of total eligible assets)",null,"31.12.2024"]
[null,null,null,"Climate Change Mitigation (CCM)",null,null,null,null,"Climate Change Adaptation (CCA)",null,null,null,"Water and marine resources (WTR)",null,null,null,"Circular economy (CE)",null,null,null,"Pollution (PPC)",null,null,null,"Biodiversity and Ecosystems (BIO)",null,null,null,"TOTAL (CCM + CCA + WTR + CE + PPC + BIO)"]
[null,null,null,"Proportion of total covered assets funding taxonomy relevant sectors (Taxonomy-eligible)",null,null,null,null,"Proportion of total covered assets funding taxonomy relevant sectors (Taxonomy-eligible)",null,null,null,"Proportion of total covered assets funding taxonomy relevant sectors (Taxonomy-eligible)",null,null,null,"Proportion of total covered assets funding taxonomy relevant sectors (Taxonomy-eligible)",null,null,null,"Proportion of total covered assets funding taxonomy relevant sectors (Taxonomy-eligible)",null,null,null,"Proportion of total covered assets funding taxonomy relevant sectors (Taxonomy-eligible)",null,null,null,"Proportion of total covered assets funding taxonomy relevant sectors (Taxonomy-eligible)"]
[null,null,null,null,"Proportion of total covered assets funding taxonomy relevant sectors (Taxonomy-aligned)",null,null,null,null,"Proportion of total covered assets funding taxonomy relevant sectors (Taxonomy-aligned)",null,null,null,"Proportion of total covered assets funding taxonomy relevant sectors (Taxonomy-aligned)",null,null,null,"Proportion of total covered assets funding taxonomy relevant sectors (Taxonomy-aligned)",null,null,null,"Proportion of total covered assets funding taxonomy relevant sectors (Taxonomy-aligned)",null,null,null,"Proportion of total covered assets funding taxonomy relevant sectors (Taxonomy-aligned)",null,null,null,"Proportion of total covered assets funding taxonomy relevant sectors (Taxonomy-aligned)"]
[null,null,null,null,null,"Of which Use of Proceeds","Of which transitional","Of which enabling",null,null,"Of which Use of Proceeds","Of which enabling",null,null,"Of which Use of Proceeds","Of which enabling",null,null,"Of which Use of Proceeds","Of which enabling",null,null,"Of which Use of Proceeds","Of which enabling",null,null,"Of which Use of Proceeds","Of which enabling",null,null,"Of which Use of Proceeds","Of which transitional","Of which enabling"]
[null,1,"Financial guarantees (FinGuar KPI)",0.15530324503695955,1.4466884119570504E-2,0,0,0,0,0,0,0,0,0,0,0,0,0,0,0,0,0,0,0,0,0,0,0,0.15530324503695955,1.4466884119570504E-2,0,0,0]
[null,2,"Assets under management (AuM KPI)",0.13962939849101616,8.9008476150714361E-2,0,4.93547952081264E-3,5.757029810782148E-2,9.2504351587967947E-3,4.5100862826180851E-3,0,1.021960142442191E-3,0,0,0,0,0,0,0,0,0,0,0,0,0,0,0,0,0.14887983364981294,9.3518562433332453E-2,0,5.9574396632548314E-3,5.757029810782148E-2]
[]
[]
[]
[]
[]
[]
[]
[]
[null,"% (compared to flow of total eligible assets)",null,"31.12.2023"]
[null,null,null,"Climate Change Mitigation (CCM)",null,null,null,null,"Climate Change Adaptation (CCA)",null,null,null,"Water and marine resources (WTR)",null,null,null,"Circular economy (CE)",null,null,null,"Pollution (PPC)",null,null,null,"Biodiversity and Ecosystems (BIO)",null,null,null,"TOTAL (CCM + CCA + WTR + CE + PPC + BIO)"]
[null,null,null,"Proportion of total covered assets funding taxonomy relevant sectors (Taxonomy-eligible)",null,null,null,null,"Proportion of total covered assets funding taxonomy relevant sectors (Taxonomy-eligible)",null,null,null,"Proportion of total covered assets funding taxonomy relevant sectors (Taxonomy-eligible)",null,null,null,"Proportion of total covered assets funding taxonomy relevant sectors (Taxonomy-eligible)",null,null,null,"Proportion of total covered assets funding taxonomy relevant sectors (Taxonomy-eligible)",null,null,null,"Proportion of total covered assets funding taxonomy relevant sectors (Taxonomy-eligible)",null,null,null,"Proportion of total covered assets funding taxonomy relevant sectors (Taxonomy-eligible)"]
[null,null,null,null,"Proportion of total covered assets funding taxonomy relevant sectors (Taxonomy-aligned)",null,null,null,null,"Proportion of total covered assets funding taxonomy relevant sectors (Taxonomy-aligned)",null,null,null,"Proportion of total covered assets funding taxonomy relevant sectors (Taxonomy-aligned)",null,null,null,"Proportion of total covered assets funding taxonomy relevant sectors (Taxonomy-aligned)",null,null,null,"Proportion of total covered assets funding taxonomy relevant sectors (Taxonomy-aligned)",null,null,null,"Proportion of total covered assets funding taxonomy relevant sectors (Taxonomy-aligned)",null,null,null,"Proportion of total covered assets funding taxonomy relevant sectors (Taxonomy-aligned)"]
[null,null,null,null,null,"Of which Use of Proceeds","Of which transitional","Of which enabling",null,null,"Of which Use of Proceeds","Of which enabling",null,null,"Of which Use of Proceeds","Of which enabling",null,null,"Of which Use of Proceeds","Of which enabling",null,null,"Of which Use of Proceeds","Of which enabling",null,null,"Of which Use of Proceeds","Of which enabling",null,null,"Of which Use of Proceeds","Of which transitional","Of which enabling"]
[null,1,"Financial guarantees (FinGuar KPI)",0,0,0,0,0,0,0,0,0,0,0,0,0,0,0,0,0,0,0,0,0,0,0,0,0,0,0,0,0,0]
[null,2,"Assets under management (AuM KPI)",5.4427725598318724E-2,5.1726333450082151E-2,0,3.3062699500361459E-4,4.0854294405535126E-2,0,0,0,0,0,0,0,0,0,0,0,0,0,0,0,0,0,0,0,0,5.4427725598318724E-2,5.1726333450082151E-2,0,3.3062699500361459E-4,4.0854294405535126E-2]

{"sheet":"5. FinGar AuM KPI - CAPEX Flow","index":15,"n_rows":26,"n_cols":33,"rows_kept":26,"cut":false,"hidden":false,"merged":[[1,1,1,3],[4,1,8,2],[4,3,4,32],[5,3,5,7],[5,8,5,11],[5,12,5,15],[5,16,5,19],[5,20,5,23],[5,24,5,27],[5,28,5,32],[6,28,6,32],[7,4,7,7],[7,9,7,11],[7,13,7,15],[7,17,7,19],[7,21,7,23],[7,25,7,27],[7,29,7,32],[6,3,6,7],[6,8,6,11],[6,12,6,15],[6,16,6,19],[6,20,6,23],[6,24,6,27],[21,28,21,32],[19,1,23,2],[19,3,19,32],[20,3,20,7],[20,8,20,11],[20,12,20,15],[20,16,20,19],[20,20,20,23],[20,24,20,27],[20,28,20,32],[21,3,21,7],[21,8,21,11],[21,12,21,15],[21,16,21,19],[21,20,21,23],[21,24,21,27],[22,29,22,32],[22,4,22,7],[22,9,22,11],[22,13,22,15],[22,17,22,19],[22,21,22,23],[22,25,22,27]]}
[]
[null,"5. KPI off-balance sheet exposures - CAPEX Flow"]
[]
[]
[null,"% (compared to flow of total eligible assets)",null,"31.12.2024"]
[null,null,null,"Climate Change Mitigation (CCM)",null,null,null,null,"Climate Change Adaptation (CCA)",null,null,null,"Water and marine resources (WTR)",null,null,null,"Circular economy (CE)",null,null,null,"Pollution (PPC)",null,null,null,"Biodiversity and Ecosystems (BIO)",null,null,null,"TOTAL (CCM + CCA + WTR + CE + PPC + BIO)"]
[null,null,null,"Proportion of total covered assets funding taxonomy relevant sectors (Taxonomy-eligible)",null,null,null,null,"Proportion of total covered assets funding taxonomy relevant sectors (Taxonomy-eligible)",null,null,null,"Proportion of total covered assets funding taxonomy relevant sectors (Taxonomy-eligible)",null,null,null,"Proportion of total covered assets funding taxonomy relevant sectors (Taxonomy-eligible)",null,null,null,"Proportion of total covered assets funding taxonomy relevant sectors (Taxonomy-eligible)",null,null,null,"Proportion of total covered assets funding taxonomy relevant sectors (Taxonomy-eligible)",null,null,null,"Proportion of total covered assets funding taxonomy relevant sectors (Taxonomy-eligible)"]
[null,null,null,null,"Proportion of total covered assets funding taxonomy relevant sectors (Taxonomy-aligned)",null,null,null,null,"Proportion of total covered assets funding taxonomy relevant sectors (Taxonomy-aligned)",null,null,null,"Proportion of total covered assets funding taxonomy relevant sectors (Taxonomy-aligned)",null,null,null,"Proportion of total covered assets funding taxonomy relevant sectors (Taxonomy-aligned)",null,null,null,"Proportion of total covered assets funding taxonomy relevant sectors (Taxonomy-aligned)",null,null,null,"Proportion of total covered assets funding taxonomy relevant sectors (Taxonomy-aligned)",null,null,null,"Proportion of total covered assets funding taxonomy relevant sectors (Taxonomy-aligned)"]
[null,null,null,null,null,"Of which Use of Proceeds","Of which transitional","Of which enabling",null,null,"Of which Use of Proceeds","Of which enabling",null,null,"Of which Use of Proceeds","Of which enabling",null,null,"Of which Use of Proceeds","Of which enabling",null,null,"Of which Use of Proceeds","Of which enabling",null,null,"Of which Use of Proceeds","Of which enabling",null,null,"Of which Use of Proceeds","Of which transitional","Of which enabling"]
[null,1,"Financial guarantees (FinGuar KPI)",2.7888172460759884E-2,2.5976761796645048E-3,0,0,0,0,0,0,0,0,0,0,0,0,0,0,0,0,0,0,0,0,0,0,0,2.7888172460759884E-2,2.5976761796645048E-3,0,0,0]
[null,2,"Assets under management (AuM KPI)",0.125,9.5000000000000001E-2,0,2.3778166593045862E-3,6.4000000000000001E-2,6.460899869313425E-3,3.2813502391589328E-3,0,0,0,0,0,0,0,0,0,0,0,0,0,0,0,0,0,0,0.13146089986931342,9.8281350239158932E-2,0,2.3778166593045862E-3,6.4000000000000001E-2]
[]
[]
[]
[]
[]
[]
[]
[]
[null,"% (compared to flow of total eligible assets)",null,"31.12.2023"]
[null,null,null,"Climate Change Mitigation (CCM)",null,null,null,null,"Climate Change Adaptation (CCA)",null,null,null,"Water and marine resources (WTR)",null,null,null,"Circular economy (CE)",null,null,null,"Pollution (PPC)",null,null,null,"Biodiversity and Ecosystems (BIO)",null,null,null,"TOTAL (CCM + CCA + WTR + CE + PPC + BIO)"]
[null,null,null,"Proportion of total covered assets funding taxonomy relevant sectors (Taxonomy-eligible)",null,null,null,null,"Proportion of total covered assets funding taxonomy relevant sectors (Taxonomy-eligible)",null,null,null,"Proportion of total covered assets funding taxonomy relevant sectors (Taxonomy-eligible)",null,null,null,"Proportion of total covered assets funding taxonomy relevant sectors (Taxonomy-eligible)",null,null,null,"Proportion of total covered assets funding taxonomy relevant sectors (Taxonomy-eligible)",null,null,null,"Proportion of total covered assets funding taxonomy relevant sectors (Taxonomy-eligible)",null,null,null,"Proportion of total covered assets funding taxonomy relevant sectors (Taxonomy-eligible)"]
[null,null,null,null,"Proportion of total covered assets funding taxonomy relevant sectors (Taxonomy-aligned)",null,null,null,null,"Proportion of total covered assets funding taxonomy relevant sectors (Taxonomy-aligned)",null,null,null,"Proportion of total covered assets funding taxonomy relevant sectors (Taxonomy-aligned)",null,null,null,"Proportion of total covered assets funding taxonomy relevant sectors (Taxonomy-aligned)",null,null,null,"Proportion of total covered assets funding taxonomy relevant sectors (Taxonomy-aligned)",null,null,null,"Proportion of total covered assets funding taxonomy relevant sectors (Taxonomy-aligned)",null,null,null,"Proportion of total covered assets funding taxonomy relevant sectors (Taxonomy-aligned)"]
[null,null,null,null,null,"Of which Use of Proceeds","Of which transitional","Of which enabling",null,null,"Of which Use of Proceeds","Of which enabling",null,null,"Of which Use of Proceeds","Of which enabling",null,null,"Of which Use of Proceeds","Of which enabling",null,null,"Of which Use of Proceeds","Of which enabling",null,null,"Of which Use of Proceeds","Of which enabling",null,null,"Of which Use of Proceeds","Of which transitional","Of which enabling"]
[null,1,"Financial guarantees (FinGuar KPI)",0,0,0,0,0,0,0,0,0,0,0,0,0,0,0,0,0,0,0,0,0,0,0,0,0,0,0,0,0,0]
[null,2,"Assets under management (AuM KPI)",0,0,0,0,0,0,0,0,0,0,0,0,0,0,0,0,0,0,0,0,0,0,0,0,0,0,0,0,0,0]

{"sheet":"Eligible non-eligible","index":16,"n_rows":15,"n_cols":3,"rows_kept":15,"cut":false,"hidden":false,"merged":[]}
[]
[]
[]
[]
[null,"Eligible and non-eligible"]
[]
[]
[null,"Eligibility","%"]
[null,"Exposures to economic activities covered (eligible) in EU 2023/2486 ",0]
[null,"Exposures to economic activities not covered (eligible) in EU 2023/2486",0.52129255274130704]
[null,"Exposures to financial and non-financial undertakings not covered by CSRD compared to total covered GAR-assets",0.220232753703826]
[null,"On demand interbank loans compared to total covered GAR-assets",1.5717060699858201E-3]
[null,"Derivatives  compared to total covered GAR-assets",2.2498644037821799E-3]
[null,"Exposures to central governments, central banks and supranational issuers compared to total covered GAR-assets",8.8825248351181096E-4]
[null,"Trading book compared to total covered GAR-assets",0.17809367433121601]

{"sheet":"Template 1 Nuclear and gas","index":17,"n_rows":16,"n_cols":4,"rows_kept":16,"cut":false,"hidden":false,"merged":[[4,1,4,2]]}
[]
[]
[]
[]
[null,"Template 1 Nuclear and fossil gas related activities"]
[]
[]
[null,"Row","Nuclear energy related activities"]
[null,1,"The undertaking carries out, funds or has exposures to research, development, demonstration and deployment of innovative electricity generation facilities that produce energy from nuclear processes with minimal waste from the fuel cycle.","NO"]
[null,2,"The undertaking carries out, funds or has exposures to construction and safe operation of new nuclear installations to produce electricity or process heat, including for the purposes of district heating or industrial processes such as hydrogen production, as well as their safety upgrades, using best available technologies.","NO"]
[null,3,"The undertaking carries out, funds or has exposures to safe operation of existing nuclear installations that produce electricity or process heat, including for the purposes of district heating or industrial processes such as hydrogen production from nuclear energy, as well as their safety upgrades.","NO"]
[]
[null,null,"Fossil gas related activities"]
[null,4,"The undertaking carries out, funds or has exposures to construction or operation of electricity generation facilities that produce electricity using fossil gaseous fuels.","NO"]
[null,5,"The undertaking carries out, funds or has exposures to construction, refurbishment, and operation of combined heat/cool and power generation facilities using fossil gaseous fuels.","NO"]
[null,6,"The undertaking carries out, funds or has exposures to construction, refurbishment and operation of heat generation facilities that produce heat/cool using fossil gaseous fuels.","NO"]

{"sheet":"Template 2 Aligned denominator","index":18,"n_rows":37,"n_cols":9,"rows_kept":37,"cut":false,"hidden":false,"merged":[[26,3,26,8],[27,3,27,4],[27,5,27,6],[27,7,27,8],[4,1,4,2],[7,3,7,8],[8,3,8,4],[8,5,8,6],[8,7,8,8],[23,1,23,2]]}
[]
[]
[]
[]
[null,"Template 2 Taxonomy-aligned economic activities (denominator) - 2024"]
[]
[]
[null,"Row","Economic activities","Amount and proportion (the information is to be \npresented in monetary amounts and as percentages)"]
[null,null,null,"CCM + CCA",null,"Climate change mitigation (CCM)",null,"Climate change adaptation (CCA)"]
[null,null,null,"Amount","%","Amount","%","Amount","%"]
[null,1,"Amount and proportion of taxonomy\u0002aligned economic \nactivity referred to in Section 4.26 of Annexes I and II to \nDelegated Regulation 2021/2139 in the denominator of \nthe applicable KPI"]
[null,2,"Amount and proportion of taxonomy\u0002aligned economic \nactivity referred to in Section 4.27 of Annexes I and II to \nDelegated Regulation 2021/2139 in the denominator of \nthe applicable KPI"]
[null,3,"Amount and proportion of taxonomy\u0002aligned economic \nactivity referred to in Section 4.28 of Annexes I and II to \nDelegated Regulation 2021/2139 in the denominator of \nthe applicable KPI"]
[null,4,"ount and proportion of taxonomy\u0002aligned economic \nactivity referred to in Section 4.29 of Annexes I and II to \nDelegated Regulation 2021/2139 in the denominator of \nthe applicable KPI"]
[null,5,"Amount and proportion of taxonomy\u0002aligned economic \nactivity referred to in Section 4.30 of Annexes I and II to \nDelegated Regulation 2021/2139 in the denominator of \nthe applicable KPI"]
[null,6,"Amount and proportion of taxonomy\u0002aligned economic \nactivity referred to in Section 4.31 of Annexes I and II to \nDelegated Regulation 2021/2139 in the denominator of \nthe applicable KPI"]
[null,7,"Amount and proportion of other taxonomy-aligned \neconomic activities not referred to in rows 1 to 6 above \nin the denominator of the applicable KPI"]
[null,8,"Total applicable KPI"]
[]
[]
[]
[]
[]
[null,"Template 2 Taxonomy-aligned economic activities (denominator) - 2023"]
[]
[]
[null,"Row","Economic activities","Amount and proportion (the information is to be \npresented in monetary amounts and as percentages)"]
[null,null,null,"CCM + CCA",null,"Climate change mitigation (CCM)",null,"Climate change adaptation (CCA)"]
[null,null,null,"Amount","%","Amount","%","Amount","%"]
[null,1,"Amount and proportion of taxonomy\u0002aligned economic \nactivity referred to in Section 4.26 of Annexes I and II to \nDelegated Regulation 2021/2139 in the denominator of \nthe applicable KPI"]
[null,2,"Amount and proportion of taxonomy\u0002aligned economic \nactivity referred to in Section 4.27 of Annexes I and II to \nDelegated Regulation 2021/2139 in the denominator of \nthe applicable KPI"]
[null,3,"Amount and proportion of taxonomy\u0002aligned economic \nactivity referred to in Section 4.28 of Annexes I and II to \nDelegated Regulation 2021/2139 in the denominator of \nthe applicable KPI"]
[null,4,"ount and proportion of taxonomy\u0002aligned economic \nactivity referred to in Section 4.29 of Annexes I and II to \nDelegated Regulation 2021/2139 in the denominator of \nthe applicable KPI"]
[null,5,"Amount and proportion of taxonomy\u0002aligned economic \nactivity referred to in Section 4.30 of Annexes I and II to \nDelegated Regulation 2021/2139 in the denominator of \nthe applicable KPI"]
[null,6,"Amount and proportion of taxonomy\u0002aligned economic \nactivity referred to in Section 4.31 of Annexes I and II to \nDelegated Regulation 2021/2139 in the denominator of \nthe applicable KPI"]
[null,7,"Amount and proportion of other taxonomy-aligned \neconomic activities not referred to in rows 1 to 6 above \nin the denominator of the applicable KPI"]
[null,8,"Total applicable KPI"]

{"sheet":"Template 3 Aligned numerator","index":19,"n_rows":37,"n_cols":9,"rows_kept":37,"cut":false,"hidden":false,"merged":[[26,3,26,8],[27,3,27,4],[27,5,27,6],[27,7,27,8],[4,1,4,2],[7,3,7,8],[8,3,8,4],[8,5,8,6],[8,7,8,8],[23,1,23,2]]}
[]
[]
[]
[]
[null,"Template 3 Taxonomy-aligned economic activities (numerator) - 2024"]
[]
[]
[null,"Row","Economic activities","Amount and proportion (the information is to be \npresented in monetary amounts and as percentages)"]
[null,null,null,"CCM + CCA",null,"Climate change mitigation (CCM)",null,"Climate change adaptation (CCA)"]
[null,null,null,"Amount","%","Amount","%","Amount","%"]
[null,1,"Amount and proportion of taxonomy\u0002aligned economic \nactivity referred to in Section 4.26 of Annexes I and II to \nDelegated Regulation 2021/2139 in the numerator of \nthe applicable KPI"]
[null,2,"Amount and proportion of taxonomy\u0002aligned economic \nactivity referred to in Section 4.27 of Annexes I and II to \nDelegated Regulation 2021/2139 in the numerator of \nthe applicable KPI"]
[null,3,"Amount and proportion of taxonomy\u0002aligned economic \nactivity referred to in Section 4.28 of Annexes I and II to \nDelegated Regulation 2021/2139 in the numerator of \nthe applicable KPI"]
[null,4,"Aount and proportion of taxonomy\u0002aligned economic \nactivity referred to in Section 4.29 of Annexes I and II to \nDelegated Regulation 2021/2139 in the numerator of \nthe applicable KPI"]
[null,5,"Amount and proportion of taxonomy\u0002aligned economic \nactivity referred to in Section 4.30 of Annexes I and II to \nDelegated Regulation 2021/2139 in the numerator of \nthe applicable KPI"]
[null,6,"Amount and proportion of taxonomy\u0002aligned economic \nactivity referred to in Section 4.31 of Annexes I and II to \nDelegated Regulation 2021/2139 in the numerator of \nthe applicable KPI"]
[null,7,"Amount and proportion of other taxonomy-aligned \neconomic activities not referred to in rows 1 to 6 above \nin the numerator of the applicable KPI"]
[null,8,"Total amount and proportion of taxonomy-aligned \neconomic activities in the numerator of the applicable KPI"]
[]
[]
[]
[]
[]
[null,"Template 3 Taxonomy-aligned economic activities (numerator) - 2023"]
[]
[]
[null,"Row","Economic activities","Amount and proportion (the information is to be \npresented in monetary amounts and as percentages)"]
[null,null,null,"CCM + CCA",null,"Climate change mitigation (CCM)",null,"Climate change adaptation (CCA)"]
[null,null,null,"Amount","%","Amount","%","Amount","%"]
[null,1,"Amount and proportion of taxonomy\u0002aligned economic \nactivity referred to in Section 4.26 of Annexes I and II to \nDelegated Regulation 2021/2139 in the numerator of \nthe applicable KPI"]
[null,2,"Amount and proportion of taxonomy\u0002aligned economic \nactivity referred to in Section 4.27 of Annexes I and II to \nDelegated Regulation 2021/2139 in the numerator of \nthe applicable KPI"]
[null,3,"Amount and proportion of taxonomy\u0002aligned economic \nactivity referred to in Section 4.28 of Annexes I and II to \nDelegated Regulation 2021/2139 in the numerator of \nthe applicable KPI"]
[null,4,"Aount and proportion of taxonomy\u0002aligned economic \nactivity referred to in Section 4.29 of Annexes I and II to \nDelegated Regulation 2021/2139 in the numerator of \nthe applicable KPI"]
[null,5,"Amount and proportion of taxonomy\u0002aligned economic \nactivity referred to in Section 4.30 of Annexes I and II to \nDelegated Regulation 2021/2139 in the numerator of \nthe applicable KPI"]
[null,6,"Amount and proportion of taxonomy\u0002aligned economic \nactivity referred to in Section 4.31 of Annexes I and II to \nDelegated Regulation 2021/2139 in the numerator of \nthe applicable KPI"]
[null,7,"Amount and proportion of other taxonomy-aligned \neconomic activities not referred to in rows 1 to 6 above \nin the numerator of the applicable KPI"]
[null,8,"Total amount and proportion of taxonomy-aligned \neconomic activities in the numerator of the applicable KPI"]

{"sheet":"Template 4 Eligible not aligned","index":20,"n_rows":37,"n_cols":9,"rows_kept":37,"cut":false,"hidden":false,"merged":[[26,3,26,8],[27,3,27,4],[27,5,27,6],[27,7,27,8],[4,1,4,2],[7,3,7,8],[8,3,8,4],[8,5,8,6],[8,7,8,8],[23,1,23,2]]}
[]
[]
[]
[]
[null,"Template 4 Taxonomy-eligible but not taxonomy-aligned economic activities - 2024"]
[]
[]
[null,"Row","Economic activities","Amount and proportion (the information is to be \npresented in monetary amounts and as percentages)"]
[null,null,null,"CCM + CCA",null,"Climate change mitigation (CCM)",null,"Climate change adaptation (CCA)"]
[null,null,null,"Amount","%","Amount","%","Amount","%"]
[null,1,"Amount and proportion of taxonomy\u0002eligible but not \ntaxonomy-aligned economic activity referred to in \nSection 4.26 of Annexes I and II to Delegated Regulation \n2021/2139 in the numerator of the applicable KPI"]
[null,2,"Amount and proportion of taxonomy\u0002eligible but not \ntaxonomy-aligned economic activity referred to in \nSection 4.27 of Annexes I and II to Delegated Regulation \n2021/2139 in the numerator of the applicable KPI"]
[null,3,"Amount and proportion of taxonomy\u0002eligible but not \ntaxonomy-aligned economic activity referred to in \nSection 4.28 of Annexes I and II to Delegated Regulation \n2021/2139 in the numerator of the applicable KPI"]
[null,4,"Aount and proportion of taxonomy\u0002eligible but not \ntaxonomy-aligned economic activity referred to in \nSection 4.29 of Annexes I and II to Delegated Regulation \n2021/2139 in the numerator of the applicable KPI"]
[null,5,"Amount and proportion of taxonomy\u0002eligible but not \ntaxonomy-aligned economic activity referred to in \nSection 4.30 of Annexes I and II to Delegated Regulation \n2021/2139 in the numerator of the applicable KPI"]
[null,6,"Amount and proportion of taxonomy\u0002eligible but not \ntaxonomy-aligned economic activity referred to in \nSection 4.31 of Annexes I and II to Delegated Regulation \n2021/2139 in the numerator of the applicable KPI"]
[null,7,"Amount and proportion of other taxonomy\u0002eligible but \nnot taxonomy-aligned economic activities not referred \nto in rows 1 to 6 above in the numerator of the \napplicable KPI"]
[null,8,"Total amount and proportion of taxonomy eligible but \nnot taxonomy\u0002aligned economic activities in the \ndenominator of the applicable KPI"]
[]
[]
[]
[]
[]
[null,"Template 4 Taxonomy-eligible but not taxonomy-aligned economic activities - 2023"]
[]
[]
[null,"Row","Economic activities","Amount and proportion (the information is to be \npresented in monetary amounts and as percentages)"]
[null,null,null,"CCM + CCA",null,"Climate change mitigation (CCM)",null,"Climate change adaptation (CCA)"]
[null,null,null,"Amount","%","Amount","%","Amount","%"]
[null,1,"Amount and proportion of taxonomy\u0002eligible but not \ntaxonomy-aligned economic activity referred to in \nSection 4.26 of Annexes I and II to Delegated Regulation \n2021/2139 in the numerator of the applicable KPI"]
[null,2,"Amount and proportion of taxonomy\u0002eligible but not \ntaxonomy-aligned economic activity referred to in \nSection 4.27 of Annexes I and II to Delegated Regulation \n2021/2139 in the numerator of the applicable KPI"]
[null,3,"Amount and proportion of taxonomy\u0002eligible but not \ntaxonomy-aligned economic activity referred to in \nSection 4.28 of Annexes I and II to Delegated Regulation \n2021/2139 in the numerator of the applicable KPI"]
[null,4,"Aount and proportion of taxonomy\u0002eligible but not \ntaxonomy-aligned economic activity referred to in \nSection 4.29 of Annexes I and II to Delegated Regulation \n2021/2139 in the numerator of the applicable KPI"]
[null,5,"Amount and proportion of taxonomy\u0002eligible but not \ntaxonomy-aligned economic activity referred to in \nSection 4.30 of Annexes I and II to Delegated Regulation \n2021/2139 in the numerator of the applicable KPI"]
[null,6,"Amount and proportion of taxonomy\u0002eligible but not \ntaxonomy-aligned economic activity referred to in \nSection 4.31 of Annexes I and II to Delegated Regulation \n2021/2139 in the numerator of the applicable KPI"]
[null,7,"Amount and proportion of other taxonomy\u0002eligible but \nnot taxonomy-aligned economic activities not referred \nto in rows 1 to 6 above in the numerator of the \napplicable KPI"]
[null,8,"Total amount and proportion of taxonomy eligible but \nnot taxonomy\u0002aligned economic activities in the \ndenominator of the applicable KPI"]

{"sheet":"Template 5 non-elible","index":21,"n_rows":37,"n_cols":5,"rows_kept":37,"cut":false,"hidden":false,"merged":[[4,1,4,2],[25,1,25,2]]}
[]
[]
[]
[]
[null,"Template 5 Taxonomy non-eligible economic activities - 2024"]
[]
[]
[null,"Row","Economic activities","Amount","Percentage"]
[null,1,"Amount and proportion of economic activity referred to in row 1 of Template 1 that is taxonomy-\nnon-eligible in accordance with Section 4.26 of Annexes I and II to Delegated Regulation 2021/2139 \nin the denominator of the applicable KPI"]
[null,2,"Amount and proportion of economic activity referred to in row 2 of Template 1 that is taxonomy-\nnon-eligible in accordance with Section 4.27 of Annexes I and II to Delegated Regulation 2021/2139 \nin the denominator of the applicable KPI"]
[null,3,"Amount and proportion of economic activity referred to in row 3 of Template 1 that is taxonomy-\nnon-eligible in accordance with Section 4.28 of Annexes I and II to Delegated Regulation 2021/2139 \nin the denominator of the applicable KPI"]
[null,4,"Amount and proportion of economic activity referred to in row 4 of Template 1 that is taxonomy-\nnon-eligible in accordance with Section 4.29 of Annexes I and II to Delegated Regulation 2021/2139 \nin the denominator of the applicable KPI"]
[null,5,"Amount and proportion of economic activity referred to in row 5 of Template 1 that is taxonomy-\nnon-eligible in accordance with Section 4.30 of Annexes I and II to Delegated Regulation 2021/2139 \nin the denominator of the applicable KPI"]
[null,6,"Amount and proportion of economic activity referred to in row 6 of Template 1 that is taxonomy-\nnon-eligible in accordance with Section 4.31 of Annexes I and II to Delegated Regulation 2021/2139 \nin the denominator of the applicable KPI"]
[null,7,"Amount and proportion of other taxonomy-non-eligible economic activities not referred to in \nrows 1 to 6 above in the denominator of the applicable KPI"]
[null,8,"Total amount and proportion of taxonomy-non-eligible economic activities in the denominator of \nthe  applicable KPI’"]
[]
[]
[]
[]
[]
[]
[]
[]
[]
[null,"Template 5 Taxonomy non-eligible economic activities - 2023"]
[]
[]
[null,"Row","Economic activities","Amount","Percentage"]
[null,1,"Amount and proportion of economic activity referred to in row 1 of Template 1 that is taxonomy-\nnon-eligible in accordance with Section 4.26 of Annexes I and II to Delegated Regulation 2021/2139 \nin the denominator of the applicable KPI"]
[null,2,"Amount and proportion of economic activity referred to in row 2 of Template 1 that is taxonomy-\nnon-eligible in accordance with Section 4.27 of Annexes I and II to Delegated Regulation 2021/2139 \nin the denominator of the applicable KPI"]
[null,3,"Amount and proportion of economic activity referred to in row 3 of Template 1 that is taxonomy-\nnon-eligible in accordance with Section 4.28 of Annexes I and II to Delegated Regulation 2021/2139 \nin the denominator of the applicable KPI"]
[null,4,"Amount and proportion of economic activity referred to in row 4 of Template 1 that is taxonomy-\nnon-eligible in accordance with Section 4.29 of Annexes I and II to Delegated Regulation 2021/2139 \nin the denominator of the applicable KPI"]
[null,5,"Amount and proportion of economic activity referred to in row 5 of Template 1 that is taxonomy-\nnon-eligible in accordance with Section 4.30 of Annexes I and II to Delegated Regulation 2021/2139 \nin the denominator of the applicable KPI"]
[null,6,"Amount and proportion of economic activity referred to in row 6 of Template 1 that is taxonomy-\nnon-eligible in accordance with Section 4.31 of Annexes I and II to Delegated Regulation 2021/2139 \nin the denominator of the applicable KPI"]
[null,7,"Amount and proportion of other taxonomy-non-eligible economic activities not referred to in \nrows 1 to 6 above in the denominator of the applicable KPI"]
[null,8,"Total amount and proportion of taxonomy-non-eligible economic activities in the denominator of \nthe  applicable KPI’"]